Cogmind - Beta 15 *** ADVENTURER MODE // 2025.08.20 @ 12:58:36 // Winter2019/RPGLIKE Player: Gallgagger Result: Destroyed by Architect with Modified Sigix Sheargun Performance ------------- Evolutions (9) 4500 Regions Visited (23) 4600 Robots Destroyed (1801) 9005 Value Destroyed (125415) 125415 Prototype IDs (373) 7460 Alien Tech Used (6) 1200 Bonus (125820) 125820 TOTAL SCORE: 278000 Bonus ------- Triggered High Security 2000 High Alert Combat Kills 90392 Follower Combat Kills 3429 Entered Garrisons 200 Registered with UFD 300 Met Optimus in HQ 500 Met Warlord at Base 500 MAIN.C Attacked Warlord 500 Warlord Defense Kills 5122 Scanned by Researcher 500 Met Optimus at Protoforge 1000 Destroyed MAIN.C Guards 500 Met MAIN.C 5000 Destroyed MAIN.C Shell 5000 Destroyed MAIN.C 10000 Met Architect 300 Destroyed A8 300 Destroyed A6 400 Destroyed A5 500 Destroyed A4 700 Destroyed A2 1000 Friendly Fire -2323 Cogmind --------- Core Integrity 0/1450 Matter 1/600 Energy 809/820 System Corruption 0% Temperature Cool (1) Movement Walking (96) Location -1/Access_0 Parts ------- > --- POWER (3) -------- Vortex Chain Reactor Concept Zero-point Core > --- PROPULSION (5) --- Improved Thunder Leg Experimental Biometal Leg Experimental Biometal Leg Experimental Biometal Leg Experimental Biometal Leg > --- UTILITY (14) ----- Light Humpback Advanced Signal Interpreter Concept Weapon Articulator Experimental Core Analyzer Experimental Armor Integrity Analyzer Experimental Weapon Cycler Experimental Reaction Control System Experimental Phase Shifter Experimental Focal Shield (fused) Thermal Barrier Experimental EM Shield Concept Matter Streamer > --- WEAPON (4) ------- Concept Heavy Railcannon Shock Maul > --- INVENTORY (22) --- Protomatter-37 Desublimator Advanced Power Amplifier Experimental Kinecellerator Centrium Medium Armor Plating Graphene Brace Concept Antimissile System Concept Network Penetrator Crosscalibrator Core Reset Matrix High-powered Disruptor Cannon Core Cannon Concept Heavy Railcannon Sigix Terminator (1) Vortex Trap Peak State ------------ > --- POWER ------------ Vortex Chain Reactor Concept Zero-point Core > --- PROPULSION ------- Enhanced Armored Heavy Treads Experimental Biometal Medium Treads Experimental Heavy Siege Treads > --- UTILITY ---------- Light Humpback Advanced Signal Interpreter Concept Weapon Articulator Experimental Core Analyzer Experimental Core Analyzer Experimental Armor Integrity Analyzer Experimental Kinecellerator Advanced Weapon Cycler Graphene Brace Experimental Focal Shield Thermal Barrier Experimental EM Shield Concept Matter Streamer > --- WEAPON ----------- Concept Heavy Railcannon Concept Heavy Railcannon > --- INVENTORY -------- Protomatter Protomatter Protomatter Protomatter High-density Centrium Leg Experimental Biometal Leg Experimental Biometal Leg Experimental Reaction Control System Concept Antimissile System Concept Network Penetrator Crosscalibrator Transdimensional Reconstructor Core Reset Matrix High-powered Disruptor Cannon Core Cannon Compact Linear Accelerator Compact Linear Accelerator Sigix Terminator Vortex Trap [Rating: 272] Favorites ----------- Power Vortex Chain Reactor Engine Ion Engine Power Core Concept Zero-point Core Reactor Vortex Chain Reactor Propulsion Arachnoskeleton Treads Experimental Heavy Siege Treads Leg Arachnoskeleton Wheel Wheel Hover Unit Hover Unit Utility Light Humpback Device Experimental Focal Shield Storage Light Humpback Processor Advanced Signal Interpreter Hackware Advanced System Shield Protection Makeshift Ablative Armor Weapon Concept Heavy Railcannon Energy Gun Autobeam Energy Cannon Concept Plasma Driver Ballistic Gun Railgun Ballistic Cannon Concept Heavy Railcannon Launcher Concept Concussive Dispersal Blaster Special Weapon CPS Tube Impact Weapon Shock Maul Slashing Weapon Vibroblade Build | -11 -10 -10 -7 -7 -5 -5 -5 -5 -4 -4 -4 -4 -4 -3 -3 -3 -2 -2 -2 -2 -1 -1 -1 ------- Run | Yrd Mat Sub Rec Scr Fac Upp Upp Zhi Pro Fac Upp Upp War Pro Res Tes Res Qua Frg Gar Acc Com Ac0 Slots Evolved 22 | 4 1 3 1 3 2 1 . 1 2 1 . . . . . . 1 . 1 . . 1 . Power 2 | 1 . . . . . . . . . 1 . . . . . . . . . . . . . Propulsion 4 | 1 . 1 . . . . . 1 . . . . . . . . . . 1 . . . . Utility 13 | 1 1 2 1 1 2 1 . . 2 . . . . . . . 1 . . . . 1 . Weapon 3 | 1 . . . 2 . . . . . . . . . . . . . . . . . . . Parts Attached 180 | 7 6 11 5 5 13 2 . 6 2 11 1 . 12 . 5 4 3 10 53 . 3 16 5 Power 19 | 2 . . 2 . 4 . . 1 . 3 . . 2 . 2 . 1 1 1 . . . . Engine 3 | 2 . . 1 . . . . . . . . . . . . . . . . . . . . Core 8 | . . . 1 . 4 . . . . 1 . . . . 1 . . . 1 . . . . Reactor 8 | . . . . . . . . 1 . 2 . . 2 . 1 . 1 1 . . . . . Propulsion 30 | 2 2 1 . 1 . . . 2 . . . . 2 . . . . . 10 . . 8 2 Treads 4 | . . . . . . . . . . . . . . . . . . . 2 . . 2 . Leg 21 | . . 1 . 1 . . . 1 . . . . 2 . . . . . 8 . . 6 2 Wheel 2 | 2 . . . . . . . . . . . . . . . . . . . . . . . Hover 3 | . 2 . . . . . . 1 . . . . . . . . . . . . . . . Flight . | . . . . . . . . . . . . . . . . . . . . . . . . Utility 75 | . 3 3 3 3 3 1 . 3 2 5 1 . 5 . 3 3 2 4 20 . 3 6 2 Device 47 | . 2 . 1 2 2 . . 1 1 3 1 . 2 . 3 2 2 4 15 . . 4 2 Storage 1 | . . 1 . . . . . . . . . . . . . . . . . . . . . Processor 14 | . . . 2 1 1 . . 1 1 1 . . 2 . . . . . 2 . 2 1 . Hackware 4 | . . . . . . . . . . 1 . . . . . 1 . . . . 1 1 . Protection 9 | . 1 2 . . . 1 . 1 . . . . 1 . . . . . 3 . . . . Artifact . | . . . . . . . . . . . . . . . . . . . . . . . . Weapon 56 | 3 1 7 . 1 6 1 . . . 3 . . 3 . . 1 . 5 22 . . 2 1 Energy Gun 8 | 2 1 1 . . 1 . . . . . . . . . . . . . 3 . . . . Energy Cannon 9 | . . 1 . . 1 . . . . . . . 1 . . 1 . 1 4 . . . . Ballistic Gun 20 | 1 . 5 . 1 2 1 . . . 3 . . 1 . . . . 1 5 . . . . Ballistic Cannon 5 | . . . . . . . . . . . . . . . . . . 1 3 . . 1 . Launcher 7 | . . . . . 2 . . . . . . . 1 . . . . . 3 . . 1 . Special Weapon 4 | . . . . . . . . . . . . . . . . . . 2 2 . . . . Impact Weapon 1 | . . . . . . . . . . . . . . . . . . . . . . . 1 Slashing Weapon 2 | . . . . . . . . . . . . . . . . . . . 2 . . . . Piercing Weapon . | . . . . . . . . . . . . . . . . . . . . . . . . Special Melee Weapon . | . . . . . . . . . . . . . . . . . . . . . . . . Unidentified Prototypes 48 | . . 2 . . 3 1 . 5 . 1 . . 7 . 1 3 . 8 14 . . 3 . Corrupted Parts 2 | . 1 . . . . . . . 1 . . . . . . . . . . . . . . System Corruption 5 | . 2 . . . . . . . 3 . . . . . . . . . . . . . . Parts Lost 4 | . . 1 . . . . . . 1 2 . . . . . . . . . . . . . Power . | . . . . . . . . . . . . . . . . . . . . . . . . Propulsion . | . . . . . . . . . . . . . . . . . . . . . . . . Utility 4 | . . 1 . . . . . . 1 2 . . . . . . . . . . . . . Weapon . | . . . . . . . . . . . . . . . . . . . . . . . . Highest Loss Streak 2 | . . 1 . . . . . . 1 2 . . . . . . . . . . . . . To Critical Strikes . | . . . . . . . . . . . . . . . . . . . . . . . . Average Backups 12 | . . 3 17 19 15 13 13 13 13 12 14 14 11 10 11 10 11 13 13 15 14 11 12 Power . | . . . 1 3 1 1 1 . . . 1 1 . . . . . . . . . . . Propulsion . | . . . 2 1 2 2 2 2 2 2 2 2 . . . . . . . . . . . Utility 5 | . . 1 9 10 6 6 6 6 6 5 6 6 5 5 5 4 4 4 6 8 7 4 7 Weapon 2 | . . 1 3 1 . . . . . . . . . . 1 1 2 3 3 5 5 4 4 Tool/Special . | . . . . . . . . . . . . . . . . . . . . . . . . Unused Backups 36 | . . . 3 6 3 2 . . 1 . . . 4 2 . . . 3 6 . . . 6 Power 2 | . . . . . 1 . . . . . . . 1 . . . . . . . . . . Propulsion 11 | . . . . 1 2 1 . . 1 . . . 2 . . . . . 4 . . . . Utility 16 | . . . 2 2 . 1 . . . . . . 1 2 . . . 2 2 . . . 4 Weapon 5 | . . . . 3 . . . . . . . . . . . . . 1 . . . . 1 Tool/Special 2 | . . . 1 . . . . . . . . . . . . . . . . . . . 1 Average Slot Usage (%) 76 | . 97 68 62 63 75 68 68 69 73 75 84 84 86 88 87 88 88 84 75 68 68 73 81 Engine 1 | . 23 14 10 10 . . . . . . . . . . . . . . . . . . . Core 3 | . . . . . 8 9 9 8 8 7 4 4 2 . . . . . 3 4 4 3 3 Reactor 4 | . . . . . . . . . . . 8 8 9 12 11 12 11 10 4 4 4 3 3 Treads 2 | . . . . . . . . . . . . . . . . . . . 1 8 8 7 . Leg 8 | . . 4 5 5 9 9 9 10 12 11 12 12 14 16 16 16 15 15 10 . . 1 16 Device 26 | . 21 12 4 8 18 9 9 8 11 22 28 28 22 20 23 23 25 26 34 36 35 32 33 Storage 3 | . . 1 5 5 4 4 4 4 4 4 4 4 4 4 4 4 3 3 3 4 4 3 3 Processor 7 | . . . 5 12 13 13 13 14 15 9 8 8 10 12 8 8 7 7 4 4 4 12 11 Hackware 1 | . . . . . . . . . . . 4 4 4 4 4 4 3 3 1 . . . . Protection 1 | . 7 7 5 3 . 3 4 4 4 1 . . 3 4 4 4 3 2 . . . . . Energy Gun 2 | . 23 4 5 5 6 4 4 4 4 4 4 4 4 4 4 4 3 . . . . . . Ballistic Gun 6 | . . 15 16 11 8 12 13 13 12 11 12 12 11 12 12 11 11 11 3 . . . . Ballistic Cannon 3 | . . . . . . . . . . . . . . . . . . . 4 8 8 7 5 Peak Build Rating 272 | 6 9 48 61 66 103 110 102 117 125 151 152 151 178 179 183 189 194 220 269 261 264 272 268 Average Rating 194 | 4 8 34 52 59 97 102 102 109 121 130 150 151 163 178 181 182 192 203 250 261 259 256 262 On Entrance 139 | . 6 9 47 59 66 102 102 102 117 125 151 151 151 178 179 183 185 194 213 261 261 252 260 Naked Turns . | . . . . . . . . . . . . . . . . . . . . . . . . Heaviest Build 173 | 11 17 66 65 65 85 94 94 94 98 111 111 111 131 131 141 137 145 145 173 162 162 163 149 Greatest Support 235 | 26 31 65 65 95 95 95 95 123 123 123 123 123 145 145 145 145 145 145 185 175 175 235 159 Greatest Overweight (x) 2 | . 1 1 . . . . . . . . 1 . . . . 1 . . 2 . . 1 1 Average Overweight (x) . | . . . . . . . . . . . . . . . . . . . . . . . . Largest Inventory Capacity 22 | 1 1 21 21 21 21 21 21 21 21 21 21 21 21 21 21 21 21 22 22 22 22 22 22 Average Capacity 20 | 1 1 7 21 21 21 21 21 21 21 21 21 21 21 21 21 21 21 21 22 22 22 22 22 Most Carried 22 | . 1 18 21 21 21 21 20 21 21 21 21 21 21 21 21 21 21 22 22 21 21 22 22 Average Carried 19 | . . 3 19 20 19 20 20 20 20 19 20 21 20 20 20 20 20 21 20 21 20 20 19 Final Capacity 22 | 1 1 21 21 21 21 21 21 21 21 21 21 21 21 21 21 21 21 22 22 22 22 22 22 Final Carried 21 | . 1 18 21 21 21 20 20 21 20 21 21 21 21 21 21 21 21 21 21 21 19 20 19 Class Distribution -------------------- 51% | Hauler-Gunner 34% | Hauler-Tank 5% | Wizard-Gunner 4% | Mutant Dominant Class ---------------- Mutant | -10/Materials Mutant | -10/Subcaves Hauler-Gunner | -7/Recycling Hauler-Gunner | -7/Scraptown Hauler-Gunner | -5/Factory Hauler-Gunner | -5/Upper Caves Hauler-Gunner | -5/Upper Caves Hauler-Gunner | -5/Zhirov Hauler-Gunner | -4/Proximity Caves Hauler-Gunner | -4/Factory Hauler-Gunner | -4/Upper Caves Hauler-Gunner | -4/Upper Caves Hauler-Gunner | -4/Warlord Hauler-Gunner | -3/Proximity Caves Hauler-Gunner | -3/Research Wizard-Gunner | -3/Testing Wizard-Gunner | -2/Research Hauler-Gunner | -2/Quarantine Hauler-Tank | -2/Protoforge Hauler-Tank | -2/Garrison Hauler-Tank | -1/Access Hauler-Gunner | -1/Command Hauler-Gunner | -1/Access_0 Resources | -11 -10 -10 -7 -7 -5 -5 -5 -5 -4 -4 -4 -4 -4 -3 -3 -3 -2 -2 -2 -2 -1 -1 -1 ----------- Run | Yrd Mat Sub Rec Scr Fac Upp Upp Zhi Pro Fac Upp Upp War Pro Res Tes Res Qua Frg Gar Acc Com Ac0 Matter Collected 93861 | 228 127 555 160 78 389 270 122 148 372 1050 489 523 1093 306 2009 1170 845 947 47183 2856 4754 23737 4450 Remotely 91370 | . . . . . . . . . 22 1050 489 523 1084 306 2004 1170 845 947 47143 2849 4754 23737 4447 Salvage Created 77446 | . 1481 868 91 189 1468 399 84 444 671 2194 1034 1355 2093 1434 4533 2991 1963 588 27842 1574 3416 19308 1426 Parts 3350 | . 89 65 8 8 91 20 11 7 45 117 61 59 111 51 248 134 95 53 1149 57 130 697 44 Haulers Intercepted 13 | . 2 . . . 1 . . . . . . . . . . 2 . . 5 . 3 . . Recyclers Shooed 8 | . 1 . 1 . . . . . . 1 . . . . 2 . 1 1 . . 1 . . Parts Field Recycled . | . . . . . . . . . . . . . . . . . . . . . . . . Retrieved Matter . | . . . . . . . . . . . . . . . . . . . . . . . . Parts Self-Destructed 347 | . . 20 . . . 44 22 4 84 . 61 60 . 52 . . . . . . . . . Prevented 1 | . . 1 . . . . . . . . . . . . . . . . . . . . . Kills | -11 -10 -10 -7 -7 -5 -5 -5 -5 -4 -4 -4 -4 -4 -3 -3 -3 -2 -2 -2 -2 -1 -1 -1 ------- Run | Yrd Mat Sub Rec Scr Fac Upp Upp Zhi Pro Fac Upp Upp War Pro Res Tes Res Qua Frg Gar Acc Com Ac0 Combat Hostiles Destroyed 1903 | . 35 29 3 2 17 7 4 . 12 35 17 19 42 19 70 37 29 8 793 44 94 553 34 Melee 2 | . . . . . . . . . . . . . 2 . . . . . . . . . . Guns 460 | . 31 28 3 2 16 7 4 . 12 30 16 18 40 19 70 37 28 8 91 . . . . Cannons 1382 | . . 1 . . . . . . . . . . . . . . . . 674 43 87 545 32 AOE 19 | . 4 . . . . . . . . 5 . . . . . . . . 4 . 6 . . Classes Destroyed 43 | . 6 3 . 1 4 1 . . 2 3 . . 4 1 2 1 2 1 10 . . 2 . Worker 20 | . 1 . . . 2 . . . . 1 . . . . 8 1 1 . 3 . 1 2 . Builder 15 | . 1 . . . 1 . . . . . . . . . 2 4 3 . 3 . 1 . . Tunneler 2 | . . . . . 1 . . . . . . . . . . . . . . . 1 . . Hauler 16 | . 2 . . . 1 . . . . . . . . . . 2 . . 8 . 3 . . Recycler 8 | . . . . . . . . . . 2 . . . . 2 1 . 1 . . 1 1 . Carrier 11 | . . . . . . . . . . . . . . . . . . . 6 . . 5 . Minesweeper 1 | . . . . . . . . . 1 . . . . . . . . . . . . . . Mechanic 34 | . . . . . . . . . . . . . . . . . . . 23 . 2 9 . Operator 10 | . . . . . 2 . . . . 1 . . . . . 1 1 1 1 . 2 1 . Drone 16 | . . . . . . . . . . . . . . 1 . . . . 15 . . . . Turret 2 | . . 2 . . . . . . . . . . . . . . . . . . . . . Watcher 40 | . 3 . . . 2 . . . . . . . . . 9 1 3 2 5 1 7 7 . Swarmer 193 | . 6 10 . . . 1 4 . 7 12 . 3 3 . . 4 4 3 91 . 4 41 . Cutter 29 | . . . . . . . . . . . . . . . 2 . . . . 3 12 12 . Saboteur 65 | . . . . . . . . . . . . . 6 1 . 1 1 . 24 4 7 21 . Grunt 434 | . 29 3 . . 9 3 . . 3 9 2 7 14 11 26 16 11 . 95 17 32 147 . Brawler 94 | . . . . . . 1 . . . 1 5 2 3 . . . 2 . 30 5 4 41 . Duelist 107 | . . . . . . . . . . 1 1 2 3 4 . 1 . . 48 1 8 38 . Protector 60 | . . . . . . . . . . . . . 3 . . . . . 34 . 1 22 . Researcher 13 | . . . . . . . . . . . . . . . . 2 . 2 9 . . . . Sentry 71 | . . 1 3 . 3 1 . . 2 4 2 2 . 2 10 . 2 3 16 4 7 9 . Demolisher 22 | . . . . . . . . . . . . . 2 . 2 . . . 1 1 2 14 . Specialist 58 | . . . . . . . . . . . . . . . . . 1 . 21 . 3 33 . Hunter 167 | . . . . . 2 1 . . . 1 4 2 3 . 14 7 2 . 73 6 2 50 . Programmer 177 | . . . . . 3 . . . . 6 2 . 2 . 13 8 3 1 68 1 2 68 . Heavy 4 | . . . . . . . . . . . . . . . 1 . 1 . . . 1 1 . Q-Series 4 | . . . . . . . . . . . . . . . . . 2 . 2 . . . . Behemoth 17 | . . . . . . . . . . 1 1 1 1 . 2 . . . 1 1 5 4 . M Guard 2 | . . . . . . . . . . . . . . . . . . . . . . 2 . Enhanced Grunt 23 | . . . . . . . . . . . . . . . . . . . . . . . 23 Enhanced Hunter 6 | . . . . . . . . . . . . . . . . . . . . . . . 6 Hotshot 11 | . . . . . . . . . . . . . . . . . . . 11 . . . . Decapitator 14 | . . . . . . . . . . . . . . . . . . . 14 . . . . Immortal 12 | . . . . . . . . . . . . . . . . . . . 12 . . . . Combat Programmer 2 | . . . . . . . . . . . . . . . . . . . . . . 2 . Striker 126 | . . . . . . . . . . . . . . . . . . . 105 1 2 18 . Executioner 117 | . . . . . . . . . . . . . 2 . . . . . 100 . 2 13 . Alpha 7 6 | . . . . . . . . . . . . . . . . . . . 4 . . 2 . Fortress 1 | . . . . . . . . . . . . . . . . . . 1 . . . . . V-Series 8 | . . . . . . . . . . . . . . . . . . . 8 . . . . Subdweller 15 | . . 15 . . . . . . . . . . . . . . . . . . . . . Federalist 1 | . . . . . . . . . . . . . . . . . . . 1 . . . . Explorer 4 | . . . . . . . . . . . . . . . . . . . 4 . . . . Ranger 1 | . . . . . . . . . . . . . . . . . . . 1 . . . . Guru 2 | . . . . . . . . . . . . . . . . . . . 2 . . . . Scrapper 5 | . . . . 2 . . . . . . . . . . . . . . 3 . . . . Elite 2 | . . . . . . . . . . . . . . . . . . . 2 . . . . Scrapoid 11 | . . . . . . . . . 1 . . . . . . . . . 10 . . . . Thug 3 | . . . . . . . . . . . . . . . . . . . . . . 3 . Savage 1 | . . . . . . . . . . . . . . . . . . . . . . 1 . Butcher 1 | . . . . . . . . . . . . . . . . . . . . . . 1 . Guerrilla 2 | . . . . . . . . . . . . . . . . . . . . . . 2 . Wizard 1 | . . . . . . . . . . . . . . . . . . . . . . 1 . Fireman 1 | . . . . . . . . . . . . . . . . . . . . . . 1 . Mutant 4 | . . . . . . . . . . . . . . . . . . . . . . 4 . Best Kill Streak 83 | . 8 9 1 2 4 2 4 . 4 6 7 5 11 7 9 9 12 5 40 11 30 83 5 Combat Bots Only 82 | . 8 7 1 2 3 2 4 . 4 5 7 5 11 7 6 8 11 3 38 11 28 82 5 Max Kills in Single Turn 7 | . 2 2 1 1 2 1 2 . 3 3 2 3 2 2 3 2 2 2 6 2 4 7 2 Gunslinging 2 | . . 1 . . . . 1 . 2 1 . 1 1 1 1 1 1 . 1 . . . . Exploded 4 | . 2 . . . . . . . . 2 . . . . . . . . 2 . 4 . . Melee 1 | . . . . . . . . . . . . . 1 . . . . . . . . . . Uniques/NPCs Destroyed 7 | . . . . . . . . . . . . . . . . . . . . . . 2 5 MAIN.C Shell (-1/Command) MAIN.C (-1/Command) A8 (-1/Access_0) A6 (-1/Access_0) A2 (-1/Access_0) A5 (-1/Access_0) A4 (-1/Access_0) Combat | -11 -10 -10 -7 -7 -5 -5 -5 -5 -4 -4 -4 -4 -4 -3 -3 -3 -2 -2 -2 -2 -1 -1 -1 -------- Run | Yrd Mat Sub Rec Scr Fac Upp Upp Zhi Pro Fac Upp Upp War Pro Res Tes Res Qua Frg Gar Acc Com Ac0 Hostile Shots Fired 9944 | . 92 129 45 32 45 33 13 . 73 125 63 76 245 40 434 652 158 97 5298 59 657 903 675 Missed 3480 | . 29 39 24 13 13 9 9 . 21 41 27 24 83 16 161 270 74 24 1657 15 212 237 482 Deflected 54 | . . . . . . . . . . . . . . . . . . . 52 . . . 2 Hits 6464 | . 63 90 21 19 32 24 4 . 52 84 36 52 162 24 273 382 84 73 3641 44 445 666 193 Melee 56 | . . . . . . . . . . . . . . . 4 2 . . 38 4 6 2 . Projectile 6408 | . 63 90 21 19 32 24 4 . 52 84 36 52 162 24 269 380 84 73 3603 40 439 664 193 AOE 25 | . . 5 . . 1 . . . . . . . 1 . . . . . 8 . 4 6 . Critical Strikes 394 | . . 5 . 1 4 1 1 . 2 6 1 5 7 2 9 21 4 1 253 4 26 30 11 Actively Blocked 2 | . . . . . . . . . . . . . . . . . . . . . . 2 . Part Disruptions 24 | . . . . . 2 . . . . 1 1 . 1 . . 3 . . 8 . 1 6 1 Damage Taken 25609 | . 555 1495 134 247 673 339 111 . 958 1509 468 584 2061 289 1603 1546 475 872 6293 114 899 624 3760 Core 18804 | . 411 1116 94 210 543 205 56 . 596 1082 367 457 1532 199 1126 1039 316 590 4687 89 648 389 3052 Absorbed by Shields 38401 | . . . . . . . . . . . . . . . 1421 1950 632 531 27124 322 2391 4030 . Reduced by Siege Mode 38 | . . . . . . . . . . . . . . . . . . . 24 . . 14 . Redirected to Core 16542 | . 304 869 81 117 453 176 56 . 542 929 331 409 1350 190 1080 976 297 575 4208 89 585 385 2540 Ignored by Resistances 108745 | . 169 411 47 71 185 96 31 . 267 765 238 486 1923 275 2675 2991 1045 1339 71924 618 8512 12502 2175 Core Remaining (%) 79 | 100 . . . 65 . . . . 96 . . . . 95 . 20 . . . 100 . . . Volleys Fired 2822 | . 78 81 7 2 35 12 5 4 25 60 30 33 61 21 130 76 53 67 1195 69 119 530 129 Largest 4 | . 2 4 3 1 3 3 3 3 3 3 3 3 3 3 3 3 3 4 4 2 2 2 2 Hottest 515 | . 90 108 78 28 131 101 101 101 101 105 105 105 260 108 108 108 108 118 515 220 220 300 410 Shots Fired 6953 | . 153 197 33 11 138 57 24 13 120 242 134 147 283 93 572 281 267 183 2492 119 196 988 210 Gun 3554 | . 153 190 33 11 138 57 24 13 120 242 134 147 279 93 572 281 267 180 620 . . . . Cannon 3345 | . . 7 . . . . . . . . . . . . . . . . 1825 119 196 988 210 Launcher 47 | . . . . . . . . . . . . . 4 . . . . . 43 . . . . Special 7 | . . . . . . . . . . . . . . . . . . 3 4 . . . . Kinetic 5683 | . . 136 21 2 65 34 16 13 78 170 89 99 173 63 367 206 157 179 2331 119 196 986 183 Thermal 1111 | . 77 57 12 9 53 23 8 . 42 72 45 48 110 30 205 75 110 1 114 . . 2 18 Explosive 43 | . . . . . . . . . . . . . . . . . . . 43 . . . . Electromagnetic 109 | . 76 4 . . 20 . . . . . . . . . . . . . . . . . 9 Robot Hit Streak 72 | . 23 36 22 23 23 16 23 29 16 39 30 35 32 24 34 28 24 61 71 22 27 72 48 Robot Miss Streak 8 | . 2 2 1 2 8 2 3 1 3 4 2 3 7 3 4 5 3 4 3 2 2 2 3 Penetration Max 3 | . . . . . 1 1 1 1 1 1 2 2 2 1 2 2 1 2 3 2 3 3 1 Secondary Targets 100 | . 8 5 . . 1 1 1 . 6 4 2 5 8 3 14 7 9 . 26 . . . . Max Gunslinging Chain 2 | . 1 1 . . 1 1 1 . 2 1 1 2 1 2 1 1 2 . 1 . . . . Autonomous 845 | . . 5 12 9 53 23 8 . 42 73 45 48 106 30 205 75 110 1 . . . . . Shots Hit Robots 5311 | . 121 157 33 9 118 53 19 7 103 198 122 125 241 76 484 224 227 135 1851 73 129 606 200 Core Hits 3299 | . 63 55 14 9 77 36 9 8 57 123 60 63 194 72 351 163 165 73 968 40 93 524 82 Critical Kills 38 | . . . . . 2 1 . . 1 1 . 1 1 1 1 . 3 1 22 . . . 3 Critical Parts Destroyed 63 | . . . 1 . 4 1 . . 1 1 1 . 6 . 5 3 1 3 22 . . . 14 Critical Strikes 910 | . 6 6 1 . 7 2 . . 2 3 1 1 9 1 8 3 4 6 446 25 47 291 41 Burn 12 | . 6 6 . . . . . . . . . . . . . . . . . . . . . Meltdown 9 | . . . . . . . . . . . . . . . . . . . 9 . . . . Destroy 97 | . . . 1 . 6 2 . . 2 3 1 1 9 1 8 3 4 6 40 . . . 10 Blast 779 | . . . . . . . . . . . . . . . . . . . 397 25 47 291 19 Corrupt 2 | . . . . . 1 . . . . . . . . . . . . . . . . . 1 Smash 11 | . . . . . . . . . . . . . . . . . . . . . . . 11 Melee Attacks 33 | . . . . . . . . . . . . . . . . . . . . . . . 33 Impact 33 | . . . . . . . . . . . . . . . . . . . . . . . 33 Slashing . | . . . . . . . . . . . . . . . . . . . . . . . . Piercing . | . . . . . . . . . . . . . . . . . . . . . . . . Sneak Attacks . | . . . . . . . . . . . . . . . . . . . . . . . . Combat Hostiles . | . . . . . . . . . . . . . . . . . . . . . . . . Follow-up Attacks . | . . . . . . . . . . . . . . . . . . . . . . . . Damage Inflicted 570437 | . 1855 2109 498 109 3141 1343 511 301 2706 6246 3082 3368 8125 2223 14424 7415 6628 4334 275724 13215 30515 157669 24896 Guns 89209 | . 1630 1969 498 109 3066 1343 511 301 2706 5468 3082 3368 8125 2223 14363 7415 6625 4334 22073 . . . . Cannons 473287 | . . 140 . . . . . . . . . . . . . . . . 249488 13215 29526 157669 23249 Explosions 6371 | . 225 . . . 75 . . . . 778 . . . . . . . . 4088 . 989 . 216 Melee 1370 | . . . . . . . . . . . . . . . . . . . . . . . 1370 Ramming 200 | . . . . . . . . . . . . . . . 61 . 3 . 75 . . . 61 Kinetic 532464 | . . 1345 348 . 1778 923 388 301 1978 4097 2381 2584 5855 1643 10160 5789 4504 4306 263762 13215 29526 157669 19912 Thermal 29548 | . 902 718 150 109 872 420 123 . 728 2038 701 784 2270 580 4203 1626 2121 28 7799 . . . 3376 Explosive 5092 | . . . . . . . . . . 111 . . . . . . . . 4088 . 893 . . Electromagnetic 1763 | . 953 46 . . 491 . . . . . . . . . . . . . . . 96 . 177 Impact 1370 | . . . . . . . . . . . . . . . . . . . . . . . 1370 Slashing . | . . . . . . . . . . . . . . . . . . . . . . . . Piercing . | . . . . . . . . . . . . . . . . . . . . . . . . Highest Corruption 17 | . 2 2 2 2 6 6 6 6 9 2 2 2 3 3 7 17 . . 4 . . 1 . Average Corruption 3 | . 2 2 2 2 5 6 6 6 7 1 2 2 2 3 4 8 . . 3 . . 1 . Corruption Purged 5 | . . . . . . . . . . . . . . . . . . . 4 . . 1 . Corruption Blocked . | . . . . . . . . . . . . . . . . . . . . . . . . Effects 360 | . 13 34 9 . 13 27 31 3 8 14 13 15 13 12 42 45 . . 53 . . 15 . Message Errors 82 | . 2 8 1 . 3 5 11 1 1 . 2 3 1 5 8 14 . . 12 . . 5 . Matter Fused 77 | . 2 11 1 . 4 6 8 1 2 7 3 4 3 1 9 7 . . 6 . . 2 . Heat Flow Errors 54 | . 3 5 1 . 2 5 3 . . 1 1 3 3 1 8 8 . . 8 . . 2 . Energy Discharges 46 | . 1 6 2 . 2 5 2 . 2 1 . 3 1 3 3 2 . . 10 . . 3 . Parts Rejected 4 | . 1 . . . . . . . . . . . 1 . . . . . 1 . . 1 . Parts Fused 5 | . 1 . . . 1 . 2 . . . . . . . . . . . . . . 1 . Data Loss (minor) 35 | . . 1 2 . 1 3 2 . . 1 4 1 1 1 5 3 . . 9 . . 1 . Data Loss (major) 16 | . . . 1 . . 1 2 . . . 2 . 1 . 1 3 . . 5 . . . . Misfires 17 | . . 1 . . . 1 1 1 3 2 . . 2 . 4 2 . . . . . . . Alerts 7 | . . 1 1 . . 1 . . . . . 1 . 1 1 1 . . . . . . . Misdirections 1 | . . . . . . . . . . . . . . . . 1 . . . . . . . Weapon Failures 16 | . 3 1 . . . . . . . 2 1 . . . 3 4 . . 2 . . . . Overload Shots . | . . . . . . . . . . . . . . . . . . . . . . . . Overflow Damage 76884 | . . . . . . . . . . 47 . . . . . . . . 46488 1378 4429 21986 2556 Projectiles 76353 | . . . . . . . . . . . . . . . . . . . 46439 1378 4422 21986 2128 Explosions 95 | . . . . . . . . . . 47 . . . . . . . . 35 . 7 . 6 Melee 436 | . . . . . . . . . . . . . . . . . . . 14 . . . 422 Knockbacks 1147 | . . . . . . . . . . . . . . . 1 . . . 701 24 30 279 112 Impact 2 | . . . . . . . . . . . . . . . 1 . . . . . . . 1 Kinetic 1031 | . . . . . . . . . . . . . . . . . . . 627 23 26 246 109 Secondary 114 | . . . . . . . . . . . . . . . . . . . 74 1 4 33 2 Self-Inflicted Damage 601 | . 31 . . . 22 . . . . 101 . . . . . . . . 261 . 168 . 18 Shots 18 | . 1 . . . 1 . . . . 3 . . . . . . . . 10 . 2 . 1 Rammed 1 | . . . . . . . . . . . . . . . . . . . 1 . . . . Targets Rammed 8 | . . . . . . . . . . . . . . . 3 . 1 . 2 . . . 2 Kicked 7 | . . . . . . . . . . . . . . . 3 . 1 . 1 . . . 2 Crushed . | . . . . . . . . . . . . . . . . . . . . . . . . Highest Temperature 408 | . 258 191 222 12 169 274 222 . 37 145 81 167 200 161 194 189 45 67 408 96 96 202 324 Average Temperature 49 | . 109 76 92 7 59 56 54 . 14 19 17 31 44 46 77 78 16 67 119 31 35 40 116 Received Heat Transfer 4719 | . 345 683 66 181 69 93 . . 144 195 21 161 650 114 211 179 63 264 1210 . . 7 63 Effects 1 | . . . . . . . . . . . . . . . . . . . 1 . . . . Short Circuit 1 | . . . . . . . . . . . . . . . . . . . 1 . . . . Siege Activations 22 | . . . . . . . . . . . . . . . . . . . 9 . . 13 . Total Turns 1033 | . . . . . . . . . . . . . . . . . . . 133 . . 900 . Longest Duration 238 | . . . . . . . . . . . . . . . . . . . 40 . . 238 . Martial Activations . | . . . . . . . . . . . . . . . . . . . . . . . . Shielding Activations 36 | . . . . . . . . . . . . . . . . . . . 34 . . . 2 Total Turns 751 | . . . . . . . . . . . . . . . . . . . 697 . . . 54 Longest Duration 63 | . . . . . . . . . . . . . . . . . . . 63 . . . 48 Robots Disrupted 1 | . . . . . . . . . . . . . . . . . . . . . . . 1 Combat Hostiles 1 | . . . . . . . . . . . . . . . . . . . . . . . 1 Robots Corrupted 28 | . . . . . . . . . . . . . . . . . . . 16 1 1 8 2 Combat Hostiles 26 | . . . . . . . . . . . . . . . . . . . 14 1 1 8 2 Parts Fried 40 | . 2 . . . 1 . . . . . . . . . . . . . 17 . 6 10 4 Impact Corruptions 103 | . . . . . . . . . . . . . . . . . . . 58 1 3 26 15 Robots Melted 13 | . . . . . 1 . . . . . 1 1 . . . . 1 . 9 . . . . Combat Hostiles 13 | . . . . . 1 . . . . . 1 1 . . . . 1 . 9 . . . . Parts Melted 98 | . 3 3 1 1 10 1 . . 2 13 3 14 6 3 14 2 6 . 15 . . 1 . Heat Transferred 57107 | . 2731 2333 575 110 2640 1430 450 . 2185 4875 2525 2825 6003 1650 11982 4231 6125 75 4112 . . . 250 Parts Sabotaged 1 | . . . . . . . . . . . . . . . . . . . 1 . . . . Parts Stolen . | . . . . . . . . . . . . . . . . . . . . . . . . Parts Stripped . | . . . . . . . . . . . . . . . . . . . . . . . . Power Chain Reactions 5 | . 3 . . . 1 . . . . . . . . . . . . . . . . . 1 Alert | -11 -10 -10 -7 -7 -5 -5 -5 -5 -4 -4 -4 -4 -4 -3 -3 -3 -2 -2 -2 -2 -1 -1 -1 ------- Run | Yrd Mat Sub Rec Scr Fac Upp Upp Zhi Pro Fac Upp Upp War Pro Res Tes Res Qua Frg Gar Acc Com Ac0 Maximum Alert Level 5 | . 3 . . . 2 . . . . 3 . . . . 5 4 5 4 5 5 5 5 . Low Security (%) 7 | 100 24 . 100 . 58 . . . . . . . . . 11 . . . 4 . . . . Level 1 8 | . 41 . . . 18 . . . . 42 . . . . 16 . . . 9 . . . . Level 2 6 | . 20 . . . 23 . . . . 12 . . . . 17 23 . 53 1 . . . . Level 3 15 | . 13 . . . . . . . . 44 . . . . 18 45 42 44 18 . . . . Level 4 7 | . . . . . . . . . . . . . . . 25 30 42 1 9 . . . . Level 5 36 | . . . . . . . . . . . . . . . 4 . 4 . 55 100 72 32 . High Security 17 | . . . . . . . . . . . . . . . 5 . 9 . . . 27 67 . Max Security . | . . . . . . . . . . . . . . . . . . . . . . . . Peak Influence 18736 | . 817 . 152 . 533 . . . . 1054 . . . . 1860 1544 1656 1100 13594 10654 8871 18736 . Initial 9006 | . . . . . . . . . . 257 . . . . 221 1100 751 1100 231 9006 5592 4989 . Average 4965 | . 345 . 58 . 196 . . . . 585 . . . . 810 965 1193 722 4245 10084 6855 11978 . Influence Increases 55210 | . 1272 365 252 . 879 499 166 12 857 1509 380 480 848 416 2749 1554 1355 712 20322 1648 3679 14250 1006 Destroy 0b10 Robot/C 36980 | . 700 320 60 . 420 360 120 . 580 800 340 420 820 380 1440 860 720 320 15060 880 1920 10460 . Destroy 0b10 Robot/NC 1180 | . 35 . . . 55 . . 10 10 25 . . 20 5 120 60 40 25 435 10 100 230 . Destroy Leader 4348 | . 160 30 . . 106 20 20 . 50 150 40 40 . 20 338 128 126 24 2120 60 300 616 . Allied During Kill 676 | . . . . . 24 119 26 2 202 23 . 20 8 11 25 13 25 11 118 . 49 . . Successful Hack 184 | . 7 . 12 . . . . . . 10 . . . . 48 . . 23 69 8 . 7 . Select Force Hacks 490 | . 310 . 180 . . . . . . . . . . . . . . . . . . . . Disable Machine 1305 | . 18 . . . 126 . . . . 144 . . . . 108 126 27 63 405 9 99 153 27 Anti-Garrison Action 450 | . . . . . . . . . . . . . . . . . . . . 100 300 50 . Destroy Structure 7212 | . 12 . . . 118 . . . . 312 . . . . 340 202 357 156 1545 581 806 1804 979 Advance Influence 150 | . . . . . . . . . . . . . . . 150 . . . . . . . . Partial Spotted 15 | . . . . . . . . . . 15 . . . . . . . . . . . . . Lose Combat Pursuer 2220 | . 30 15 . . 30 . . . 15 30 . . . . 180 165 60 90 570 . 105 930 . Influence Decreases 54682 | . 515 1122 252 . 446 675 423 12 390 960 985 705 576 753 1010 2069 1233 2185 7250 4538 5462 4192 18929 Entered New Map 37387 | . . 417 . . . 195 72 . . 210 455 115 186 458 50 949 783 845 241 4538 5062 3882 18929 Time Decay 15036 | . 515 695 252 . 426 480 351 12 360 670 530 550 370 295 920 650 450 570 6290 . 340 310 . Lost Part 40 | . . 10 . . . . . . 10 20 . . . . . . . . . . . . . Lost Ally 450 | . . . . . 20 . . . 20 60 . 40 20 . 40 20 . 20 150 . 60 . . Purge Threat 1769 | . . . . . . . . . . . . . . . . 450 . 750 569 . . . . Squads Dispatched 156 | . 11 . . . 11 . . . . 14 . 1 . 1 21 13 5 5 16 . 19 39 . Investigation 38 | . 11 . . . 6 . . . . 6 . . . . 5 . 1 1 7 . . 1 . Extermination 22 | . . . . . 2 . . . . 3 . . . . 4 3 2 2 3 . 1 2 . Reinforcement 25 | . . . . . 3 . . . . 1 . . . . 5 7 1 1 6 . 1 . . Assault 67 | . . . . . . . . . . 1 . 1 . 1 6 3 1 1 . . 17 36 . Garrison 4 | . . . . . . . . . . 3 . . . . 1 . . . . . . . . Intercept . | . . . . . . . . . . . . . . . . . . . . . . . . Searches Triggered . | . . . . . . . . . . . . . . . . . . . . . . . . Construction Impeded 7 | . . . . . 1 . . . . 1 . . . . 1 2 . . 2 . . . . Haulers Reinforced 3 | . . . . . . . . . . . . . . . 1 2 . . . . . . . Active Scanning Responses . | . . . . . . . . . . . . . . . . . . . . . . . . Cargo Convoy Interrupts 1 | . . . . . . . . . . . . . . . . . 1 . . . . . . Stealth | -11 -10 -10 -7 -7 -5 -5 -5 -5 -4 -4 -4 -4 -4 -3 -3 -3 -2 -2 -2 -2 -1 -1 -1 --------- Run | Yrd Mat Sub Rec Scr Fac Upp Upp Zhi Pro Fac Upp Upp War Pro Res Tes Res Qua Frg Gar Acc Com Ac0 Distress Signals 49 | . 1 . . . 1 . . . 1 1 . . . . 3 3 1 3 22 . 7 6 . Communications Jammed 79 | . . . . . . . . . . . . . . . . . 39 40 . . . . . Distress Signals 77 | . . . . . . . . . . . . . . . . . 37 40 . . . . . Times Spotted 2239 | . 40 29 3 9 32 17 6 . 29 41 17 22 97 19 103 72 42 22 956 40 119 460 64 Peak Tracking Total 66 | . 7 3 1 4 4 6 3 . 7 6 7 5 22 7 13 13 5 4 16 9 13 66 7 Tactical Retreats 81 | . 2 1 . . 1 . . . 1 2 . . . . 6 4 4 3 35 . 4 17 1 Traps | -11 -10 -10 -7 -7 -5 -5 -5 -5 -4 -4 -4 -4 -4 -3 -3 -3 -2 -2 -2 -2 -1 -1 -1 ------- Run | Yrd Mat Sub Rec Scr Fac Upp Upp Zhi Pro Fac Upp Upp War Pro Res Tes Res Qua Frg Gar Acc Com Ac0 Traps Triggered 31 | . 2 2 . . . . . . . 1 . . 1 1 4 . 1 3 11 1 1 3 . Indirectly . | . . . . . . . . . . . . . . . . . . . . . . . . Trap Hack Attempts . | . . . . . . . . . . . . . . . . . . . . . . . . Triggered . | . . . . . . . . . . . . . . . . . . . . . . . . Disarmed . | . . . . . . . . . . . . . . . . . . . . . . . . Reprogrammed . | . . . . . . . . . . . . . . . . . . . . . . . . Reused . | . . . . . . . . . . . . . . . . . . . . . . . . Traps Extracted . | . . . . . . . . . . . . . . . . . . . . . . . . Installed . | . . . . . . . . . . . . . . . . . . . . . . . . Triggered . | . . . . . . . . . . . . . . . . . . . . . . . . Most Traps Carried 1 | . . . . 1 1 1 1 1 1 1 1 1 1 1 1 1 1 1 1 1 1 1 1 Machines | -11 -10 -10 -7 -7 -5 -5 -5 -5 -4 -4 -4 -4 -4 -3 -3 -3 -2 -2 -2 -2 -1 -1 -1 ---------- Run | Yrd Mat Sub Rec Scr Fac Upp Upp Zhi Pro Fac Upp Upp War Pro Res Tes Res Qua Frg Gar Acc Com Ac0 Machines Disabled 180 | . 2 2 . 1 14 2 . . 1 16 . 1 2 . 12 14 3 8 64 2 13 19 4 Max in Single Turn 2 | . 2 1 . 1 . 1 . . 1 2 . 1 1 . 2 1 1 1 2 1 1 2 1 Garrison Access 7 | . . . . . . . . . . . . . . . 2 1 1 1 . . 2 . . Phase Generator 1 | . . . . . . . . . . . . . . . . . . . . . . 1 . Machines Repaired . | . . . . . . . . . . . . . . . . . . . . . . . . Machines Dismantled . | . . . . . . . . . . . . . . . . . . . . . . . . Machines Sabotaged 5 | . 5 . . . . . . . . . . . . . . . . . . . . . . Overloaded Fab Kills . | . . . . . . . . . . . . . . . . . . . . . . . . Hacking | -11 -10 -10 -7 -7 -5 -5 -5 -5 -4 -4 -4 -4 -4 -3 -3 -3 -2 -2 -2 -2 -1 -1 -1 --------- Run | Yrd Mat Sub Rec Scr Fac Upp Upp Zhi Pro Fac Upp Upp War Pro Res Tes Res Qua Frg Gar Acc Com Ac0 Machines Accessed 99 | . 9 1 9 3 11 . . 4 . 9 . . 6 . 9 4 5 9 14 3 2 1 . Terminals 50 | . 7 . 3 . 6 . . . . 3 . . . . 3 3 3 8 9 3 1 1 . Fabricators 1 | . . . . . . . . . . . . . . . . . . . 1 . . . . Repair Stations . | . . . . . . . . . . . . . . . . . . . . . . . . Recycling Units 26 | . 2 . 6 . 4 . . . . 5 . . . . 4 . 1 . 3 . 1 . . Scanalyzers 2 | . . . . . 1 . . . . 1 . . . . . . . . . . . . . Garrison Access 6 | . . . . . . . . . . . . . . . 2 1 1 1 1 . . . . Total Hacks 279 | . 22 4 12 24 24 . . 17 . 19 . . 9 . 15 20 17 31 55 4 3 3 . Successful 163 | . 14 4 8 24 10 . . 17 . 10 . . 9 . 8 8 7 14 24 3 2 1 . Failed 116 | . 8 . 4 . 14 . . . . 9 . . . . 7 12 10 17 31 1 1 2 . Catastrophic 21 | . . . 1 . 3 . . . . 1 . . . . 1 2 2 2 9 . . . . Database Lockouts . | . . . . . . . . . . . . . . . . . . . . . . . . Manual 153 | . 22 . 8 . 19 . . . . 14 . . . . 9 19 1 21 37 . 3 . . Terminals 167 | . 19 . 6 . 15 . . . . 9 . . . . 6 19 14 28 43 4 1 3 . Fabricators 4 | . . . . . . . . . . . . . . . . . . . 4 . . . . Repair Stations . | . . . . . . . . . . . . . . . . . . . . . . . . Recycling Units 38 | . 3 . 6 . 6 . . . . 6 . . . . 7 . 1 . 7 . 2 . . Scanalyzers 7 | . . . . . 3 . . . . 4 . . . . . . . . . . . . . Garrison Access 9 | . . . . . . . . . . . . . . . 2 1 2 3 1 . . . . Terminal Hacks 94 | . 2 4 . 24 1 . . 17 . 1 . . 9 . 3 4 4 9 11 3 1 1 . Record 33 | . . 4 . 16 . . . 5 . . . . 8 . . . . . . . . . . Part Schematic 5 | . . . . . . . . 4 . . . . . . . . . 1 . . . . . Robot Analysis 18 | . 2 . . 7 . . . 4 . . . . . . 1 . 1 . 3 . . . . Prototype ID Bank 5 | . . . . . . . . 4 . 1 . . . . . . . . . . . . . Open Door 3 | . . . . . . . . . . . . . 1 . . . 1 1 . . . . . Branch Access Points 3 | . . . . . . . . . . . . . . . 1 . 1 . . . 1 . . Emergency Access Points 1 | . . . . . . . . . . . . . . . . . . . . 1 . . . Machine Index 3 | . . . . . . . . . . . . . . . 1 . 1 . 1 . . . . Alert Level 5 | . . . . . . . . . . . . . . . . 1 . 2 2 . . . . Unreport Threat 12 | . . . . . . . . . . . . . . . . 3 . 5 4 . . . . Recall Reinforcements 1 | . . . . . . . . . . . . . . . . . . . 1 . . . . Hauler Manifests 1 | . . . . . 1 . . . . . . . . . . . . . . . . . . Garrison Registry 1 | . . . . . . . . . . . . . . . . . . . . 1 . . . Security Stations 1 | . . . . . . . . . . . . . . . . . . . . 1 . . . Proto ID Catalog 1 | . . . . 1 . . . . . . . . . . . . . . . . . . . Disengage Seal 1 | . . . . . . . . . . . . . . . . . . . . . . 1 . Fabricator Hacks 2 | . . . . . . . . . . . . . . . . . . . 2 . . . . Load Schematic 1 | . . . . . . . . . . . . . . . . . . . 1 . . . . Build 1 | . . . . . . . . . . . . . . . . . . . 1 . . . . Repair Station Hacks . | . . . . . . . . . . . . . . . . . . . . . . . . Recycling Unit Hacks . | . . . . . . . . . . . . . . . . . . . . . . . . Scanalyzer 6 | . . . . . 3 . . . . 3 . . . . . . . . . . . . . Insert Component 4 | . . . . . 2 . . . . 2 . . . . . . . . . . . . . Analyze 2 | . . . . . 1 . . . . 1 . . . . . . . . . . . . . Garrison Access Hacks 7 | . . . . . . . . . . . . . . . 2 1 2 1 1 . . . . Unlock Access 2 | . . . . . . . . . . . . . . . . . 1 . 1 . . . . Seal Access 5 | . . . . . . . . . . . . . . . 2 1 1 1 . . . . . Unauthorized Hacks 53 | . 12 . 8 . 6 . . . . 6 . . . . 3 3 1 4 10 . . . . Terminals 29 | . 10 . 2 . 2 . . . . 1 . . . . . 3 . 4 7 . . . . Assimilate 3 | . . . . . . . . . . . . . . . . . . . 3 . . . . Botnet 19 | . 3 . 2 . 2 . . . . 1 . . . . . 3 . 4 4 . . . . Sabotage 7 | . 7 . . . . . . . . . . . . . . . . . . . . . . Fabricators . | . . . . . . . . . . . . . . . . . . . . . . . . Repair Stations . | . . . . . . . . . . . . . . . . . . . . . . . . Recycling Units 24 | . 2 . 6 . 4 . . . . 5 . . . . 3 . 1 . 3 . . . . Tunnel 8 | . 2 . 6 . . . . . . . . . . . . . . . . . . . . Fedlink 9 | . . . . . 1 . . . . 5 . . . . 2 . . . 1 . . . . Scrapoids 3 | . . . . . 3 . . . . . . . . . . . . . . . . . . Scraphulk 4 | . . . . . . . . . . . . . . . 1 . 1 . 2 . . . . Scanalyzers . | . . . . . . . . . . . . . . . . . . . . . . . . Garrison Access . | . . . . . . . . . . . . . . . . . . . . . . . . Data Cores Recovered 6 | . . . . . 1 . . . . 1 . . . . . . 1 1 1 . 1 . . Used 2 | . . . . . 1 . . . . . . . . . . . . . 1 . . . . Hacking Detections 47 | . 5 . 3 . 7 . . . . 4 . . . . 4 3 2 6 9 2 1 1 . Full Trace Events 5 | . . . . . 1 . . . . 1 . . . . 1 . . . 1 . . 1 . Feedback Events 1 | . . . . . . . . . . . . . . . 1 . . . . . . . . Corruption 1 | . . . . . . . . . . . . . . . 1 . . . . . . . . Feedback Blocked . | . . . . . . . . . . . . . . . . . . . . . . . . Robot Schematics Acquired 11 | . . . . . . . . . . . . . . . . 1 . 3 7 . . . . Robots Built . | . . . . . . . . . . . . . . . . . . . . . . . . Authchips . | . . . . . . . . . . . . . . . . . . . . . . . . Time . | . . . . . . . . . . . . . . . . . . . . . . . . Total Robot Build Rating . | . . . . . . . . . . . . . . . . . . . . . . . . Part Schematics Acquired 29 | . . . . . . . . 4 . 1 . . . . . . . 9 15 . . . . Parts Built 1 | . . . . . . . . . . . . . . . . . . . 1 . . . . Authchips . | . . . . . . . . . . . . . . . . . . . . . . . . Time 24 | . . . . . . . . . . . . . . . . . . . 24 . . . . Total Part Build Rating 3 | . . . . . . . . . . . . . . . . . . . 3 . . . . Parts Repaired . | . . . . . . . . . . . . . . . . . . . . . . . . Time . | . . . . . . . . . . . . . . . . . . . . . . . . Parts Recycled . | . . . . . . . . . . . . . . . . . . . . . . . . Recycled Matter . | . . . . . . . . . . . . . . . . . . . . . . . . Retrieved Matter . | . . . . . . . . . . . . . . . . . . . . . . . . Retrieved Components . | . . . . . . . . . . . . . . . . . . . . . . . . Parts Scanalyzed 2 | . . . . . 1 . . . . 1 . . . . . . . . . . . . . Part Schematics Acquired 1 | . . . . . . . . . . 1 . . . . . . . . . . . . . Parts Damaged . | . . . . . . . . . . . . . . . . . . . . . . . . Bothacking | -11 -10 -10 -7 -7 -5 -5 -5 -5 -4 -4 -4 -4 -4 -3 -3 -3 -2 -2 -2 -2 -1 -1 -1 ------------ Run | Yrd Mat Sub Rec Scr Fac Upp Upp Zhi Pro Fac Upp Upp War Pro Res Tes Res Qua Frg Gar Acc Com Ac0 Used RIF Installer . | . . . . . . . . . . . . . . . . . . . . . . . . Robots Hacked . | . . . . . . . . . . . . . . . . . . . . . . . . Non-combat . | . . . . . . . . . . . . . . . . . . . . . . . . Combat . | . . . . . . . . . . . . . . . . . . . . . . . . Robot Hacks Applied . | . . . . . . . . . . . . . . . . . . . . . . . . Relay Couplers Released 3 | . . . . . . . . . . . . . . . . . . . 2 . 1 . . Machine Destruction 1 | . . . . . . . . . . . . . . . . . . . . . 1 . . Programmers 2 | . . . . . . . . . . . . . . . . . . . 2 . . . . Fabnet Peak Effective % . | . . . . . . . . . . . . . . . . . . . . . . . . Robots Rewired 21 | . . . 7 . . 2 . . 2 . 2 1 . 2 . . . . . 5 . . . Allies Hacked 1 | . . . . . . . . . . . . . . . . . . 1 . . . . . Hacks Repelled . | . . . . . . . . . . . . . . . . . . . . . . . . Allies | -11 -10 -10 -7 -7 -5 -5 -5 -5 -4 -4 -4 -4 -4 -3 -3 -3 -2 -2 -2 -2 -1 -1 -1 -------- Run | Yrd Mat Sub Rec Scr Fac Upp Upp Zhi Pro Fac Upp Upp War Pro Res Tes Res Qua Frg Gar Acc Com Ac0 Total Allies 47 | . . . 7 . 15 2 . . 2 . 2 1 . 2 1 . 1 . 9 5 . . . Largest Group 10 | . . . 7 2 10 8 8 7 8 5 2 2 1 2 2 1 1 1 7 5 3 . . Highest-Rated Group 473 | . . . 121 31 473 329 329 299 348 219 78 78 48 111 139 139 139 139 306 393 265 . . Highest-Rated Ally 139 | . . . 32 21 50 47 47 47 49 49 48 48 48 64 139 139 139 139 139 102 102 . . Total Orders 21 | . . . . . . . . . . . . . . . . . 4 4 13 . . . . STAY 12 | . . . . . . . . . . . . . . . . . 3 2 7 . . . . FOLLOW 9 | . . . . . . . . . . . . . . . . . 1 2 6 . . . . Ally Attacks 441 | . . . . 7 28 62 26 . 97 20 . 7 8 4 21 11 26 11 82 . 31 . . Total Damage 14971 | . . . . 219 2313 1363 607 . 1832 320 . 176 227 153 1134 681 1659 755 2710 . 822 . . Kills 102 | . . . . 1 12 12 2 . 20 6 . 2 3 1 5 6 7 7 14 . 4 . . Allies Corrupted 1 | . . . . . 1 . . . . . . . . . . . . . . . . . . Allies Melted 2 | . . . . 1 . . . . . . . . 1 . . . . . . . . . . Intel | -11 -10 -10 -7 -7 -5 -5 -5 -5 -4 -4 -4 -4 -4 -3 -3 -3 -2 -2 -2 -2 -1 -1 -1 ------- Run | Yrd Mat Sub Rec Scr Fac Upp Upp Zhi Pro Fac Upp Upp War Pro Res Tes Res Qua Frg Gar Acc Com Ac0 Active Infowar (turns) 7287 | . 1034 2002 341 . . . . . . 1142 1063 1110 77 . 1 . 280 231 6 . . . . Sensors 3392 | . . . . . . . . . . 1142 1063 1110 77 . . . . . . . . . . IFF 2 | . . . . . . . . . . . . . . . . . . . 2 . . . . Terrain 3341 | . 1010 1990 341 . . . . . . . . . . . . . . . . . . . . Structural 2514 | . 1034 1480 . . . . . . . . . . . . . . . . . . . . . Triangulation 1 | . . . . . . . . . . . . . . . 1 . . . . . . . . Cloaking 4 | . . . . . . . . . . . . . . . . . . . 4 . . . . Jamming 511 | . . . . . . . . . . . . . . . . . 280 231 . . . . . Robot Analysis Total 17 | . 2 . . 7 . . . 4 . . . . . . 1 . 1 . 2 . . . . Derelict Logs Recovered 12 | . . 1 . 5 . 1 2 . 1 . 1 1 . . . . . . . . . . . Drone Launches . | . . . . . . . . . . . . . . . . . . . . . . . . Drone Recoveries . | . . . . . . . . . . . . . . . . . . . . . . . . Exploration | -11 -10 -10 -7 -7 -5 -5 -5 -5 -4 -4 -4 -4 -4 -3 -3 -3 -2 -2 -2 -2 -1 -1 -1 ------------- Run | Yrd Mat Sub Rec Scr Fac Upp Upp Zhi Pro Fac Upp Upp War Pro Res Tes Res Qua Frg Gar Acc Com Ac0 Turns Passed 44550 | 45 1096 2002 678 1436 947 978 917 245 755 1353 1063 1110 1482 920 1947 1313 998 1140 12582 1337 955 7772 1479 Spaces Moved 29939 | 40 1173 1984 580 1202 796 1000 918 212 633 1158 889 1022 1120 881 1504 790 810 942 6588 703 410 3625 959 Core 1 | 1 . . . . . . . . . . . . . . . . . . . . . . . Treads 5001 | . . . . . . . . . . . . . . . . . . . 913 703 410 2975 . Legs 23267 | . . 1526 580 1202 796 1000 918 212 633 1158 889 1022 1120 881 1504 790 810 942 5675 . . 650 959 Wheels 437 | 39 398 . . . . . . . . . . . . . . . . . . . . . . Hover 1233 | . 775 458 . . . . . . . . . . . . . . . . . . . . . Flight . | . . . . . . . . . . . . . . . . . . . . . . . . Fastest Speed 50 | 50 56 56 90 60 90 90 90 90 96 72 96 72 67 90 72 72 72 72 62 165 165 108 96 Average Speed 107 | 86 67 82 90 89 90 90 90 92 96 95 97 95 93 90 88 87 86 78 126 165 165 153 102 Slowest Speed 270 | 90 125 180 90 90 90 90 90 96 96 100 175 96 96 90 90 173 90 90 270 165 165 240 169 Overloaded Moves 1527 | . . . . 22 . . . . . 3 . 10 27 . 121 141 167 616 420 . . . . Propulsion Burnouts . | . . . . . . . . . . . . . . . . . . . . . . . . Robots Hopped . | . . . . . . . . . . . . . . . . . . . . . . . . Potential Cave-ins 22 | . . . . . . . . . . . . . . . 1 . 3 . 12 3 . 3 . Cave-ins Triggered 1 | . . . . . . . . . . . . . . . . . . . . . 1 . . Teleports 124 | . . . . . . . . . . . . . . . . . . . 92 19 12 1 . Exploration Rate (%) 71 | 3 97 96 98 78 30 98 98 60 83 30 97 98 92 93 41 74 15 81 90 87 27 80 61 Regions Visited 23 Branch Regions 16 Pre-discovered Areas 24 | . 2 2 6 5 . 1 . 3 1 1 1 1 1 . . . . . . . . . . Known Exits Taken 18 | . . . . 1 1 1 1 1 1 1 1 1 1 1 1 1 1 1 1 . 1 1 . Unknown Exits Taken 4 | 1 1 1 1 . . . . . . . . . . . . . . . . . . . . Scrap Searched 30 | . . 7 . 6 . 5 2 . 3 . 4 2 . 1 . . . . . . . . . Spaces Dug 344 | . . 1 . . . . . . . 9 . 1 4 4 20 28 17 18 19 44 24 152 3 Terrain Destroyed 3825 | . 10 1 . . 13 11 5 1 33 180 44 34 62 39 166 121 106 45 1061 199 279 1017 398 Melee . | . . . . . . . . . . . . . . . . . . . . . . . . Projectile 3578 | . . 1 . . 11 11 5 1 33 87 44 34 58 39 166 121 106 45 1058 199 215 950 394 AOE 247 | . 10 . . . 2 . . . . 93 . . 4 . . . . . 3 . 64 67 4 Terrain Rammed . | . . . . . . . . . . . . . . . . . . . . . . . . Walls Destroyed . | . . . . . . . . . . . . . . . . . . . . . . . . Machines Disabled . | . . . . . . . . . . . . . . . . . . . . . . . . Actions | -11 -10 -10 -7 -7 -5 -5 -5 -5 -4 -4 -4 -4 -4 -3 -3 -3 -2 -2 -2 -2 -1 -1 -1 --------- Run | Yrd Mat Sub Rec Scr Fac Upp Upp Zhi Pro Fac Upp Upp War Pro Res Tes Res Qua Frg Gar Acc Com Ac0 Total 38319 | 46 1316 2204 723 1565 984 1059 999 251 737 1296 1038 1096 1422 961 1839 1243 1014 1250 9391 808 570 5228 1279 Wait 3452 | . 33 65 24 338 58 12 75 22 16 17 45 7 125 42 78 334 96 119 959 5 21 948 13 Move 29914 | 39 1172 1983 579 1201 795 999 917 211 632 1157 888 1021 1119 880 1503 789 809 941 6585 702 409 3624 959 Hop . | . . . . . . . . . . . . . . . . . . . . . . . . Pick Up 155 | . 1 16 9 9 10 3 . 2 4 3 5 2 6 2 1 2 1 8 51 . 1 11 8 Fast Attach 137 | 6 4 7 2 2 4 2 . 6 1 10 . . 4 . 2 1 . 8 66 . 1 7 4 Attach 65 | . . . . 3 3 . . . 1 1 . . 1 . . 1 1 2 26 . 2 15 9 Detach 31 | . . 1 . . . . . . . . . . . . . . . 2 11 . . 9 8 Swap 131 | 1 3 6 7 1 9 . . 2 1 7 2 . 15 . 8 7 5 8 40 . 2 5 2 Drop 214 | . . 6 9 9 13 7 . 4 3 5 5 2 8 2 3 4 3 17 89 . 1 10 14 Fire 2822 | . 78 81 7 2 35 12 5 4 25 60 30 33 61 21 130 76 53 67 1195 69 119 530 129 Melee 33 | . . . . . . . . . . . . . . . . . . . . . . . 33 Ram . | . . . . . . . . . . . . . . . . . . . . . . . . Kick 7 | . . . . . . . . . . . . . . . 3 . 1 . 1 . . . 2 Crush 1 | . . . . . . . . . . . . . . . . . . . 1 . . . . Escape Stasis 40 | . . . . . . . . . . . . . . . 8 . 5 . 27 . . . . Rewire 118 | . . . 71 . . 6 . . 11 . 4 1 1 6 . . . . . 16 . 2 . Trap . | . . . . . . . . . . . . . . . . . . . . . . . . Miscellaneous 1199 | . 25 39 15 . 57 18 2 . 43 36 59 30 82 8 103 29 40 78 340 16 14 67 98 Route ------- -11/Scrapyard -10/Materials (discovered 4 exits: [*Mat x3] / *Sub) -10/Subcaves (discovered 3 exits: [*Mat x2] / *Rec) -7/Recycling (discovered 2 exits: *Fac / *Scr) -7/Scraptown -5/Factory (discovered 4 exits: *Fac x2 / *Upp x2) -5/Upper Caves -5/Upper Caves (discovered 2 exits: *Fac / *Zhi) -5/Zhirov -4/Proximity Caves -4/Factory (discovered 2 exits: *Res / *Upp) -4/Upper Caves -4/Upper Caves (discovered 2 exits: *Res / *War) -4/Warlord -3/Proximity Caves -3/Research (discovered 3 exits: *Res / *Tes x2) -3/Testing -2/Research (discovered 2 exits: *Qua x2) -2/Quarantine (discovered 3 exits: *Acc / [*Sec] / *Frg) -2/Protoforge (discovered 2 exits: *Acc / Gar) -2/Garrison (discovered 3 exits: *Acc x3) -1/Access -1/Command (discovered 3 exits: [*Sur x2] / *Ac0) -1/Access_0 History --------- Turn | Location | Event 1 | -11/Scrapyard | Upgraded with Power slot (x1) 1 | -11/Scrapyard | Upgraded with Propulsion slot (x1) 1 | -11/Scrapyard | Upgraded with Utility slot (x1) 1 | -11/Scrapyard | Upgraded with Weapon slot (x1) 19 | -11/Scrapyard | Discovered new exit (range 16) 46 | -11/Scrapyard | Entered Materials 93 | -10/Materials | Discovered new exit (range 12) 305 | -10/Materials | Build established: Mutant 316 | -10/Materials | Reached level 2 337 | -10/Materials | Discovered new exit (range 5) 377 | -10/Materials | Discovered new exit (range 10) 404 | -10/Materials | Upgraded with Utility slot (x1) 532 | -10/Materials | Discovered new exit (range 13) 719 | -10/Materials | Reached level 3 938 | -10/Materials | Reached level 4 1036 | -10/Materials | Destroyed 8 combat bots 1142 | -10/Materials | Entered Subcaves 1143 | -10/Subcaves | Learned 4 Materials zone layouts 1144 | -10/Subcaves | Reached level 5 1289 | -10/Subcaves | Learned location of Zion (-7) 1289 | -10/Subcaves | Met a Zionite searching for "candidates" 1306 | -10/Subcaves | Discovered new exit (range 14) 1405 | -10/Subcaves | Core integrity fell below 50% 1457 | -10/Subcaves | A Subdweller sparked back to life 1457 | -10/Subcaves | A Subdweller sparked back to life 1457 | -10/Subcaves | A Subdweller sparked back to life 1588 | -10/Subcaves | Upgraded with Propulsion slot (x1) 1589 | -10/Subcaves | Found Prototype Leg 1589 | -10/Subcaves | Identified Arachnoskeleton 1590 | -10/Subcaves | Attached Arachnoskeleton, gained temporary slots: Propulsion x3 1842 | -10/Subcaves | Visited 4L-MR0's lab 1856 | -10/Subcaves | Found Prototype Protection 1856 | -10/Subcaves | Identified Gun Armor 1858 | -10/Subcaves | Attached Gun Armor, gained temporary slots: Weapon x2 1899 | -10/Subcaves | Upgraded with Utility slot (x1) 1921 | -10/Subcaves | Reached level 6 1980 | -10/Subcaves | Disturbed a concealed Subdweller 2160 | -10/Subcaves | Curiously followed by a Cobbler waking with a query about "LVR3C" 2267 | -10/Subcaves | Build established: Derelict-Skirmisher 2310 | -10/Subcaves | Core integrity fell below 20% 2467 | -10/Subcaves | Shifting Twisted Machinery released Lgt. Humpback 2469 | -10/Subcaves | Shifting Twisted Machinery released Sub. Monowheel 2475 | -10/Subcaves | Upgraded with Utility slot (x1) 2530 | -10/Subcaves | Shifting Twisted Machinery released Sub. Optics 2533 | -10/Subcaves | Shifting Twisted Machinery released Flamer 2593 | -10/Subcaves | Discovered new exit (range 9) 2601 | -10/Subcaves | Discovered new exit (range 10) 2632 | -10/Subcaves | Destroyed 7 combat bots 2928 | -10/Subcaves | Build established: Hauler-Gunner 3013 | -10/Subcaves | Visited Clippyterm 3016 | -10/Subcaves | Learned location of Section 7 (-2) 3144 | -10/Subcaves | Entered Recycling 3146 | -7/Recycling | Reached level 7 3146 | -7/Recycling | Reached level 8 3281 | -7/Recycling | Discovered new exit (range 9) 3307 | -7/Recycling | Reached level 9 3505 | -7/Recycling | Upgraded with Utility slot (x1) 3775 | -7/Recycling | Scanned before Scraplab entrance 3788 | -7/Recycling | Entered Scraplab 3795 | -7/Recycling | Discovered new exit (range 2) 3822 | -7/Recycling | Entered Scraptown 3822 | -7/Scraptown | Accompanied by 2 allies 3824 | -7/Scraptown | System corruption cleaned by C-Scrubber 3963 | -7/Scraptown | Scanned Subdweller tech in exchange for log data 3965 | -7/Scraptown | Learned location of 1 exit from Factory 3966 | -7/Scraptown | Learned location of Warlord (-4) 3967 | -7/Scraptown | Learned 8 Factory zone layouts 3967 | -7/Scraptown | Learned location of Testing (-3) 3968 | -7/Scraptown | Learned location of Quarantine (-2) 4003 | -7/Scraptown | Visited Shadow of the Wyrm 4022 | -7/Scraptown | Visited Cyclists 4039 | -7/Scraptown | Visited Cave Peace 4061 | -7/Scraptown | Visited Comm Corps 4185 | -7/Scraptown | Upgraded with Utility slot (x1) 4244 | -7/Scraptown | Visited UFD Registry 4244 | -7/Scraptown | Registered with UFD as "Scrapback" 4244 | -7/Scraptown | Reached level 10 4273 | -7/Scraptown | Visited Science Guys 4294 | -7/Scraptown | Visited Curators Association 4330 | -7/Scraptown | Visited DA-N13 Charitable Foundation 4338 | -7/Scraptown | Found DCF Scrap (28 items) 4357 | -7/Scraptown | Visited Scrapoid Research Area 4374 | -7/Scraptown | Visited Observation Area 4391 | -7/Scraptown | Visited Research Penetration Think Tank 4413 | -7/Scraptown | Visited Scrap Suit Storage 4425 | -7/Scraptown | Visited Scrapoid Pod Storage 4438 | -7/Scraptown | Visited Analyses Database 4458 | -7/Scraptown | Visited Derelict Rescue Squad 4464 | -7/Scraptown | Found DRS Beacon 4520 | -7/Scraptown | Delivered Scrap Shield to a Scientist 4728 | -7/Scraptown | Upgraded with Weapon slot (x2) 4732 | -7/Scraptown | Found Scrapoid Pod 4896 | -7/Scraptown | Met Optimus 4896 | -7/Scraptown | Accepted into 0bPrime 5037 | -7/Scraptown | Build established: Hauler-Mutant 5211 | -7/Scraptown | Civil war broke out across Scraptown 5216 | -7/Scraptown | Found Potential Leg 5257 | -7/Scraptown | Discovered new exit (range 3) 5258 | -7/Scraptown | Identified exit to Factory 5258 | -7/Scraptown | Entered Factory 5259 | -5/Factory | Identified exit to Upper Caves 5260 | -5/Factory | Identified exit to Factory 5260 | -5/Factory | Reached level 11 5260 | -5/Factory | Reached level 12 5260 | -5/Factory | Reached level 13 5260 | -5/Factory | Reached level 14 5260 | -5/Factory | Reached level 15 5272 | -5/Factory | Upgraded with Utility slot (x2) 5282 | -5/Factory | Lost 4 allies 5437 | -5/Factory | Discovered exit to Factory (range 6) 5549 | -5/Factory | Loaded intel: 8 recycling unit locations 5576 | -5/Factory | Build established: Hauler-Gunner 5609 | -5/Factory | Core integrity fell below 50% 5684 | -5/Factory | Reached level 16 5800 | -5/Factory | Found Prototype Launcher 5800 | -5/Factory | Identified Mni. Smartbomb Launcher 5804 | -5/Factory | Found Mni. Smartbomb Launcher 5872 | -5/Factory | Scrapoid reinforcements arrived 5912 | -5/Factory | Scrapoids reinforcements arrived? 5961 | -5/Factory | P-70 Sage assimilated allied 05F05-D 5981 | -5/Factory | Reached level 17 5999 | -5/Factory | Lost 7 allies 6108 | -5/Factory | Scrapoids reinforcements arrived? 6186 | -5/Factory | Discovered exit to Upper Caves (range 7) 6205 | -5/Factory | Entered Upper Caves 6205 | -5/Upper Caves | Accompanied by 7 allies 6207 | -5/Upper Caves | UFD Scientist delivered a prototype 6209 | -5/Upper Caves | Encountered a Warlord checkpoint 6210 | -5/Upper Caves | Upgraded with Utility slot (x1) 6211 | -5/Upper Caves | Found Prototype Protection 6211 | -5/Upper Caves | Identified Enh. Scrap Shield 6273 | -5/Upper Caves | Reached level 18 6275 | -5/Upper Caves | Attracted the attention of an 0b10 outpost 6396 | -5/Upper Caves | Attracted the attention of an 0b10 checkpoint 6399 | -5/Upper Caves | Reached level 19 6593 | -5/Upper Caves | Discovered new exit (range 9) 6600 | -5/Upper Caves | Identified exit to Upper Caves 7183 | -5/Upper Caves | Entered another Upper Caves area 7183 | -5/Upper Caves | Accompanied by 8 allies 7290 | -5/Upper Caves | Learned Factory security intel 7291 | -5/Upper Caves | Learned 8 Factory zone layouts 7420 | -5/Upper Caves | Reached level 20 7560 | -5/Upper Caves | Spotted B-75 Beast 7570 | -5/Upper Caves | Allies destroyed B-75 Beast 7612 | -5/Upper Caves | Discovered new exit (range 10) 7620 | -5/Upper Caves | Identified exit to Zhirov 7833 | -5/Upper Caves | Discovered exit to Factory (range 10) 8100 | -5/Upper Caves | Entered Zhirov 8100 | -5/Zhirov | Accompanied by 7 allies 8100 | -5/Zhirov | Discovered new exit (range 3) 8157 | -5/Zhirov | Found Alien Artifact 8157 | -5/Zhirov | Identified Integrated Dissipator 8157 | -5/Zhirov | Installed Integrated Dissipator, increased core heat dissipation (+20) 8192 | -5/Zhirov | Upgraded with Propulsion slot (x1) 8213 | -5/Zhirov | Found Alien Artifact 8286 | -5/Zhirov | Learned location of Command (-1) 8321 | -5/Zhirov | Identified exit to Proximity Caves 8345 | -5/Zhirov | Entered Proximity Caves 8345 | -4/Proximity Caves | Accompanied by 7 allies 8347 | -4/Proximity Caves | Reached level 21 8357 | -4/Proximity Caves | Attracted the attention of an 0b10 checkpoint 8466 | -4/Proximity Caves | Attracted the attention of an 0b10 outpost 8484 | -4/Proximity Caves | Reached level 22 8552 | -4/Proximity Caves | Upgraded with Utility slot (x1) 8603 | -4/Proximity Caves | Reached level 23 8914 | -4/Proximity Caves | Spotted B-86 Titan 8929 | -4/Proximity Caves | Allies destroyed B-86 Titan 9023 | -4/Proximity Caves | Discovered exit to Factory (range 7) 9030 | -4/Proximity Caves | Upgraded with Utility slot (x1) 9100 | -4/Proximity Caves | Entered Factory 9100 | -4/Factory | Accompanied by 5 allies 9101 | -4/Factory | Identified exit to Research 9102 | -4/Factory | Reached level 24 9268 | -4/Factory | Loaded intel: 8 recycling unit locations 9268 | -4/Factory | Learned location of Protoforge (-2) 9544 | -4/Factory | Discovered new exit (range 15) 9557 | -4/Factory | Identified exit to Upper Caves 9627 | -4/Factory | Reached level 25 9655 | -4/Factory | Spotted B-86 Titan 9680 | -4/Factory | Core integrity fell below 50% 9680 | -4/Factory | Destroyed B-86 Titan 9850 | -4/Factory | First assault squad dispatched 9882 | -4/Factory | Upgraded with Power slot (x1) 10170 | -4/Factory | Garrison activated, responded to threat 10453 | -4/Factory | Entered Upper Caves 10518 | -4/Upper Caves | Reached level 26 10857 | -4/Upper Caves | Attracted the attention of an 0b10 checkpoint 10993 | -4/Upper Caves | Discovered new exit (range 6) 11001 | -4/Upper Caves | Identified exit to Upper Caves 11022 | -4/Upper Caves | Spotted B-86 Titan 11032 | -4/Upper Caves | Destroyed B-86 Titan 11077 | -4/Upper Caves | Attracted the attention of an 0b10 outpost 11130 | -4/Upper Caves | Destroyed 7 combat bots 11516 | -4/Upper Caves | Entered another Upper Caves area 11516 | -4/Upper Caves | Accompanied by 2 allies 11527 | -4/Upper Caves | Discovered exit to Research (range 8) 11741 | -4/Upper Caves | Attracted the attention of an 0b10 checkpoint 11834 | -4/Upper Caves | Attracted the attention of an 0b10 outpost 11917 | -4/Upper Caves | Spotted B-86 Titan 11924 | -4/Upper Caves | Destroyed B-86 Titan 12515 | -4/Upper Caves | Discovered new exit (range 9) 12521 | -4/Upper Caves | Identified exit to Warlord 12626 | -4/Upper Caves | Entered Warlord 12626 | -4/Warlord | Accompanied by 1 ally 12659 | -4/Warlord | System corruption cleaned by Quarantine Array 12831 | -4/Warlord | Learned 4 Armory zone layouts 12831 | -4/Warlord | Learned 4 Quarantine zone layouts 12832 | -4/Warlord | Learned Factory recycling unit intel 12832 | -4/Warlord | Learned Research scanalyzer intel 12955 | -4/Warlord | Rebuked by Warlord 12980 | -4/Warlord | Warlord's base attacked by MAIN.C 13260 | -4/Warlord | Found Prototype Energy Cannon 13260 | -4/Warlord | Identified Vortex Cannon 13323 | -4/Warlord | Found Prototype Processor 13323 | -4/Warlord | Identified Exp. Target Analyzer 13330 | -4/Warlord | Warlord forces counterattacked 13361 | -4/Warlord | Spotted B-90 Cyclops 13417 | -4/Warlord | Spotted Striker 13428 | -4/Warlord | Reached level 27 13472 | -4/Warlord | Destroyed 11 combat bots 13484 | -4/Warlord | Spotted B-86 Titan 13486 | -4/Warlord | Spotted Executioner 13487 | -4/Warlord | Spotted B-90 Cyclops 13490 | -4/Warlord | Destroyed Executioner 13513 | -4/Warlord | Destroyed B-86 Titan 13534 | -4/Warlord | Destroyed 7 combat bots 13545 | -4/Warlord | Lost 29 allies 13554 | -4/Warlord | Found Prototype Device 13554 | -4/Warlord | Identified Adv. Kinecellerator 13560 | -4/Warlord | Found Prototype Processor 13560 | -4/Warlord | Identified Exp. Core Analyzer 13581 | -4/Warlord | Spotted Executioner 13581 | -4/Warlord | Spotted Striker 13581 | -4/Warlord | Spotted Executioner 13600 | -4/Warlord | Destroyed Executioner 13637 | -4/Warlord | Destroyed 8 combat bots 13655 | -4/Warlord | Warlord base infiltrated, sounded retreat 13696 | -4/Warlord | Discovered new exit (range 15) 13720 | -4/Warlord | Spotted B-90 Cyclops 13758 | -4/Warlord | Identified exit to Proximity Caves 13827 | -4/Warlord | Spotted Executioner 13924 | -4/Warlord | Lost 6 allies 14108 | -4/Warlord | Entered Proximity Caves 14162 | -3/Proximity Caves | Reached level 28 14339 | -3/Proximity Caves | Encountered a Derelict sapper outpost 14349 | -3/Proximity Caves | Spotter reported a threat 14481 | -3/Proximity Caves | Attracted the attention of an 0b10 checkpoint 14648 | -3/Proximity Caves | Discovered exit to Research (range 12) 14751 | -3/Proximity Caves | Attracted the attention of an 0b10 outpost 14801 | -3/Proximity Caves | Destroyed 7 combat bots 15028 | -3/Proximity Caves | Entered Research 15028 | -3/Research | Accompanied by 2 allies 15029 | -3/Research | Loaded intel: 6 scanalyzer locations 15240 | -3/Research | Assembled infested ambush trap array 15323 | -3/Research | Discovered new exit (range 14) 15348 | -3/Research | Identified exit to Testing 15374 | -3/Research | Reached level 29 15390 | -3/Research | Spotted B-86 Titan 15403 | -3/Research | Destroyed B-86 Titan 15909 | -3/Research | Spotted B-86 Titan 15927 | -3/Research | Destroyed B-86 Titan 16028 | -3/Research | First assault squad dispatched 16139 | -3/Research | Discovered new exit (range 5) 16160 | -3/Research | Identified exit to Research 16199 | -3/Research | Core integrity fell below 50% 16388 | -3/Research | Garrison activated, responded to threat 16397 | -3/Research | Loaded intel: 5 recycling unit locations 16473 | -3/Research | Reached level 30 16587 | -3/Research | Scraphulk reinforcements arrived 16873 | -3/Research | High security lockdown imminent 16953 | -3/Research | High security lockdown engaged 16975 | -3/Research | Entered Testing 16975 | -3/Testing | Accompanied by 1 ally 17007 | -3/Testing | Found Prototype Energy Cannon 17007 | -3/Testing | Identified Cld. Nova Cannon 17369 | -3/Testing | Build established: Wizard-Gunner 17475 | -3/Testing | First assault squad dispatched 18036 | -3/Testing | System corruption reached 10% 18103 | -3/Testing | Destroyed 8 combat bots 18112 | -3/Testing | Reached level 31 18112 | -3/Testing | Scanned by Researcher 18146 | -3/Testing | Found Prototype Hackware 18195 | -3/Testing | Found Prototype Energy Cannon 18204 | -3/Testing | Discovered exit to Research (range 14) 18288 | -3/Testing | Entered Research 18289 | -2/Research | Core integrity fell below 50% 18292 | -2/Research | Destroyed 8 combat bots 18322 | -2/Research | Scraphulk reinforcements arrived? 18327 | -2/Research | Core integrity fell below 20% 18390 | -2/Research | Identified exit to Garrison 18425 | -2/Research | Identified exit to Quarantine 18453 | -2/Research | Upgraded with Utility slot (x1) 18726 | -2/Research | Reached level 32 18788 | -2/Research | First assault squad dispatched 19016 | -2/Research | Destroyed 11 combat bots 19118 | -2/Research | Cargo convoy interrupted 19170 | -2/Research | Spotted B-90 Cyclops 19188 | -2/Research | High security lockdown imminent 19268 | -2/Research | High security lockdown engaged 19286 | -2/Research | Entered Quarantine 19286 | -2/Quarantine | Accompanied by 1 ally 19307 | -2/Quarantine | Found Alien Artifact 19511 | -2/Quarantine | Spotted Alpha 7 19541 | -2/Quarantine | Found Prototype Ballistic Gun 19541 | -2/Quarantine | Identified Multirail 19564 | -2/Quarantine | Discovered new exit (range 4) 19566 | -2/Quarantine | Identified exit to Access 19586 | -2/Quarantine | Found Alien Energy Cannon 19586 | -2/Quarantine | Identified Core Cannon 19613 | -2/Quarantine | Build established: Hauler-Gunner 19671 | -2/Quarantine | Found Alien Launcher 19786 | -2/Quarantine | First assault squad dispatched 19809 | -2/Quarantine | Reached level 33 19839 | -2/Quarantine | Found Alien Artifact 19946 | -2/Quarantine | Found Prototype Device 19946 | -2/Quarantine | Identified Exp. Focal Shield 20108 | -2/Quarantine | Spotted Fortress 20286 | -2/Quarantine | Destroyed Fortress 20307 | -2/Quarantine | Found Prototype Device 20307 | -2/Quarantine | Identified Thermal Barrier 20315 | -2/Quarantine | Found Prototype Device 20315 | -2/Quarantine | Identified Exp. EM Shield 20324 | -2/Quarantine | Found Prototype Reactor 20324 | -2/Quarantine | Identified Vortex Chain Reactor 20400 | -2/Quarantine | Discovered new exit (range 5) 20400 | -2/Quarantine | Discovered new exit (range 6) 20403 | -2/Quarantine | Identified exit to Protoforge 20426 | -2/Quarantine | Entered Protoforge 20466 | -2/Protoforge | Superfortress began startup sequence 20518 | -2/Protoforge | Spotted Hotshot 20519 | -2/Protoforge | Spotted Hotshot 20523 | -2/Protoforge | Destroyed Hotshot 20531 | -2/Protoforge | Destroyed Hotshot 20598 | -2/Protoforge | Spotted Hotshot 20599 | -2/Protoforge | Build established: Hauler-Tank 20599 | -2/Protoforge | Spotted Hotshot 20602 | -2/Protoforge | Destroyed Hotshot 20612 | -2/Protoforge | Destroyed Hotshot 20721 | -2/Protoforge | Spotted B-90 Cyclops 20760 | -2/Protoforge | Destroyed B-90 Cyclops 20762 | -2/Protoforge | Spotted Hotshot 20762 | -2/Protoforge | Spotted Hotshot 20769 | -2/Protoforge | Destroyed Hotshot 20771 | -2/Protoforge | Destroyed Hotshot 20905 | -2/Protoforge | Discovered exit to Access (range 8) 20988 | -2/Protoforge | Spotted Hotshot 20992 | -2/Protoforge | Spotted Hotshot 20996 | -2/Protoforge | Destroyed Hotshot 21001 | -2/Protoforge | Destroyed Hotshot 21057 | -2/Protoforge | Build established: Hauler-Gunner 21195 | -2/Protoforge | Scrapoid Pod released 02F21-D (x5) 21446 | -2/Protoforge | Build established: Hauler-Tank 21517 | -2/Protoforge | Spotted AP7-3 21517 | -2/Protoforge | Spotted AP7-3 21580 | -2/Protoforge | Lost 5 allies 21582 | -2/Protoforge | Destroyed AP7-3 21602 | -2/Protoforge | Found Prototype Processor 21602 | -2/Protoforge | Identified Exp. Targeting Computer 21633 | -2/Protoforge | Destroyed AP7-3 21643 | -2/Protoforge | Found Prototype Ballistic Gun 21643 | -2/Protoforge | Identified Cep. XC Strikerail 21768 | -2/Protoforge | Spotted EXE-6 21768 | -2/Protoforge | Spotted EXE-6 21782 | -2/Protoforge | Destroyed EXE-6 21792 | -2/Protoforge | Destroyed EXE-6 21817 | -2/Protoforge | Found Cep. XC Strikerail 21851 | -2/Protoforge | Spotted Decapitator 21851 | -2/Protoforge | Spotted Decapitator 21859 | -2/Protoforge | Destroyed Decapitator 21861 | -2/Protoforge | Destroyed Decapitator 21918 | -2/Protoforge | UFD initiated attack on Protoforge 21918 | -2/Protoforge | Loaded intel: 3 recycling unit locations 21947 | -2/Protoforge | Scraphulk reinforcements arrived 21949 | -2/Protoforge | Scraphulk reinforcements arrived 21954 | -2/Protoforge | Optimus greeted in Protoforge 21995 | -2/Protoforge | Upgraded with Propulsion slot (x1) 21997 | -2/Protoforge | Found Cep. XC Strikerail 22000 | -2/Protoforge | Found Prototype Device 22000 | -2/Protoforge | Identified Exp. Kinecellerator 22055 | -2/Protoforge | Fabricated CPS Tube (x1) 22164 | -2/Protoforge | Reached level 34 22231 | -2/Protoforge | Spotted Striker 22232 | -2/Protoforge | Spotted Striker 22234 | -2/Protoforge | Destroyed Striker 22239 | -2/Protoforge | Destroyed Striker 22281 | -2/Protoforge | Identified Transdimensional Reconstructor 22281 | -2/Protoforge | Forge Plexus network access discovered 22427 | -2/Protoforge | Spotted Decapitator 22427 | -2/Protoforge | Spotted Decapitator 22428 | -2/Protoforge | Spotted Decapitator 22428 | -2/Protoforge | Spotted Decapitator 22429 | -2/Protoforge | Spotted Decapitator 22429 | -2/Protoforge | Allies destroyed Decapitator 22429 | -2/Protoforge | Allies destroyed Decapitator 22430 | -2/Protoforge | Spotted Striker 22431 | -2/Protoforge | Destroyed Decapitator 22431 | -2/Protoforge | Destroyed Striker 22432 | -2/Protoforge | Spotted Striker 22433 | -2/Protoforge | Allies destroyed Decapitator 22435 | -2/Protoforge | Destroyed Decapitator 22437 | -2/Protoforge | Destroyed Striker 22444 | -2/Protoforge | Found Prototype Launcher 22444 | -2/Protoforge | Identified Cep. Concussive Dispersal Blaster 22517 | -2/Protoforge | Spotted Striker 22539 | -2/Protoforge | Spotted Striker 22540 | -2/Protoforge | Destroyed Striker 22545 | -2/Protoforge | Allies destroyed Striker 22639 | -2/Protoforge | Spotted V460-l 22639 | -2/Protoforge | Spotted V977-g 22654 | -2/Protoforge | Found Cep. Zero-point Core 22727 | -2/Protoforge | Spotted Decapitator 22727 | -2/Protoforge | Spotted Decapitator 22727 | -2/Protoforge | Spotted Decapitator 22728 | -2/Protoforge | Destroyed Decapitator 22731 | -2/Protoforge | Destroyed Decapitator 22733 | -2/Protoforge | Destroyed Decapitator 22838 | -2/Protoforge | Spotted V123-p 22838 | -2/Protoforge | Spotted V375-h 22845 | -2/Protoforge | Spotted Immortal 22875 | -2/Protoforge | Destroyed Immortal 23014 | -2/Protoforge | Found Cep. Matter Streamer 23128 | -2/Protoforge | Spotted AP7-3 23128 | -2/Protoforge | Spotted AP7-3 23265 | -2/Protoforge | Spotted Decapitator 23265 | -2/Protoforge | Spotted Decapitator 23311 | -2/Protoforge | Found Crosscalibrator 23318 | -2/Protoforge | Spotted Immortal 23318 | -2/Protoforge | Spotted Immortal 23340 | -2/Protoforge | Destroyed Immortal 23382 | -2/Protoforge | Destroyed Immortal 23424 | -2/Protoforge | Found Cep. RG22 Armor 23430 | -2/Protoforge | Found Faulty Cep. Hardlight Director 23437 | -2/Protoforge | Spotted V660-v 23437 | -2/Protoforge | Spotted V571-b 23505 | -2/Protoforge | Destroyed V660-v 23524 | -2/Protoforge | Destroyed V571-b 23537 | -2/Protoforge | Found Faulty Cep. Hardlight Director 23647 | -2/Protoforge | Found Cep. XC Strikerail 23692 | -2/Protoforge | Spotted Decapitator 23692 | -2/Protoforge | Spotted Decapitator 23692 | -2/Protoforge | Spotted Decapitator 23694 | -2/Protoforge | Destroyed Decapitator 23696 | -2/Protoforge | Destroyed Decapitator 23699 | -2/Protoforge | Destroyed Decapitator 23767 | -2/Protoforge | Found Cep. Biometal Exoskeleton 23838 | -2/Protoforge | Found Cep. Heavy Railcannon 23840 | -2/Protoforge | Found Cep. Helical Railcannon 23843 | -2/Protoforge | Identified Hpw. Disruptor Cannon 23846 | -2/Protoforge | Found Cep. Heavy Railcannon 23858 | -2/Protoforge | Found Cep. Plasma Driver 23927 | -2/Protoforge | Found Prototype Device 23927 | -2/Protoforge | Identified Exp. Cloaking Device 24079 | -2/Protoforge | Additional patrols dispatched to research labs 24082 | -2/Protoforge | Found Cep. Nanofilaments [Tensile] 24082 | -2/Protoforge | Installed Cep. Nanofilaments [Tensile], 3 resistances modified: KI +20%, TH -10%, I +20% 24093 | -2/Protoforge | Found Cep. Navigation Harness 24148 | -2/Protoforge | Destroyed AP7-3 24154 | -2/Protoforge | Destroyed AP7-3 24173 | -2/Protoforge | Found Cep. XC Strikerail 24199 | -2/Protoforge | Found Faulty Cep. Dimensional Manipulator 24203 | -2/Protoforge | Found Faulty Cep. Dimensional Manipulator 24618 | -2/Protoforge | Spotted Hotshot 24618 | -2/Protoforge | Spotted Striker 24618 | -2/Protoforge | Destroyed Striker 24623 | -2/Protoforge | Spotted Striker 24639 | -2/Protoforge | Destroyed Striker 24664 | -2/Protoforge | Destroyed Hotshot 24668 | -2/Protoforge | Spotted Hotshot 24669 | -2/Protoforge | Destroyed Hotshot 24674 | -2/Protoforge | Spotted Decapitator 24678 | -2/Protoforge | Destroyed Decapitator 24685 | -2/Protoforge | Spotted Striker 24747 | -2/Protoforge | Destroyed Striker 24776 | -2/Protoforge | Destroyed Executioner 24797 | -2/Protoforge | Spotted Decapitator 24806 | -2/Protoforge | Destroyed Decapitator 24811 | -2/Protoforge | Destroyed Striker 24816 | -2/Protoforge | Spotted Decapitator 24821 | -2/Protoforge | Spotted Hotshot 24822 | -2/Protoforge | Destroyed Decapitator 24822 | -2/Protoforge | Destroyed Hotshot 24843 | -2/Protoforge | Destroyed 10 combat bots 24853 | -2/Protoforge | Spotted Immortal 24903 | -2/Protoforge | Spotted Executioner 24908 | -2/Protoforge | Destroyed Immortal 24910 | -2/Protoforge | Destroyed Executioner 24911 | -2/Protoforge | Spotted Executioner 24912 | -2/Protoforge | Destroyed Executioner 24920 | -2/Protoforge | Spotted Striker 24945 | -2/Protoforge | Destroyed Striker 24945 | -2/Protoforge | Spotted Striker 24954 | -2/Protoforge | Destroyed Striker 24960 | -2/Protoforge | Spotted Immortal 24970 | -2/Protoforge | Destroyed Immortal 24977 | -2/Protoforge | Destroyed V460-l 24991 | -2/Protoforge | Destroyed V977-g 25012 | -2/Protoforge | Destroyed 14 combat bots 25072 | -2/Protoforge | Spotted Executioner 25091 | -2/Protoforge | Destroyed Executioner 25093 | -2/Protoforge | Spotted Executioner 25098 | -2/Protoforge | Reached level 35 25107 | -2/Protoforge | Destroyed Executioner 25128 | -2/Protoforge | Destroyed 7 combat bots 25163 | -2/Protoforge | Found Cep. Weapon Articulator 25251 | -2/Protoforge | Spotted V233-p 25301 | -2/Protoforge | Found Cep. Network Penetrator 25307 | -2/Protoforge | Found Cep. Network Penetrator 25425 | -2/Protoforge | UFD reported confirmed Drillbomb installation 25426 | -2/Protoforge | Found Cep. Plasma Driver 25437 | -2/Protoforge | Found Cep. Plasma Driver 25471 | -2/Protoforge | Found Cep. Variable Chargecaster 26113 | -2/Protoforge | Spotted Executioner 26114 | -2/Protoforge | Destroyed Executioner 26115 | -2/Protoforge | Spotted Executioner 26119 | -2/Protoforge | Destroyed Executioner 26127 | -2/Protoforge | Spotted Executioner 26129 | -2/Protoforge | Spotted Executioner 26152 | -2/Protoforge | Destroyed 7 combat bots 26157 | -2/Protoforge | Found Cep. Antimissile System 26165 | -2/Protoforge | Destroyed Executioner 26182 | -2/Protoforge | Destroyed Executioner 26220 | -2/Protoforge | Spotted Striker 26220 | -2/Protoforge | Spotted Executioner 26222 | -2/Protoforge | Destroyed Striker 26234 | -2/Protoforge | Destroyed Executioner 26258 | -2/Protoforge | Destroyed 7 combat bots 26301 | -2/Protoforge | Spotted Immortal 26306 | -2/Protoforge | Destroyed Immortal 26306 | -2/Protoforge | Spotted Immortal 26313 | -2/Protoforge | Destroyed Immortal 26378 | -2/Protoforge | Spotted Striker 26381 | -2/Protoforge | Spotted Striker 26382 | -2/Protoforge | Destroyed Striker 26382 | -2/Protoforge | Destroyed Striker 26389 | -2/Protoforge | Spotted Executioner 26390 | -2/Protoforge | Spotted Striker 26393 | -2/Protoforge | Destroyed Executioner 26404 | -2/Protoforge | Destroyed Striker 26440 | -2/Protoforge | Destroyed 14 combat bots 26443 | -2/Protoforge | Spotted Executioner 26443 | -2/Protoforge | Destroyed Executioner 26449 | -2/Protoforge | Destroyed Executioner 26485 | -2/Protoforge | Spotted Executioner 26485 | -2/Protoforge | Spotted Striker 26485 | -2/Protoforge | Spotted Executioner 26485 | -2/Protoforge | Destroyed Executioner 26485 | -2/Protoforge | Destroyed Executioner 26488 | -2/Protoforge | Destroyed Striker 26494 | -2/Protoforge | Spotted Executioner 26504 | -2/Protoforge | Destroyed Executioner 26546 | -2/Protoforge | Spotted Immortal 26547 | -2/Protoforge | Spotted Immortal 26560 | -2/Protoforge | Destroyed Immortal 26562 | -2/Protoforge | Destroyed Immortal 26575 | -2/Protoforge | Spotted Striker 26578 | -2/Protoforge | Spotted Striker 26583 | -2/Protoforge | Destroyed Striker 26589 | -2/Protoforge | Destroyed Striker 26610 | -2/Protoforge | Destroyed 22 combat bots 26674 | -2/Protoforge | UFD reported confirmed Drillbomb installation 26746 | -2/Protoforge | UFD reported confirmed Drillbomb installation 27076 | -2/Protoforge | Identified Hpw. Transdimensional Reconstructor 27076 | -2/Protoforge | Warped through subspace 27119 | -2/Protoforge | Found Prototype Device 27119 | -2/Protoforge | Identified Exp. Cloaking Device 27227 | -2/Protoforge | Build established: Hauler-Skirmisher 27228 | -2/Protoforge | Spotted Striker 27228 | -2/Protoforge | Spotted Executioner 27238 | -2/Protoforge | Destroyed Executioner 27243 | -2/Protoforge | Destroyed Striker 27274 | -2/Protoforge | Destroyed 7 combat bots 27285 | -2/Protoforge | Spotted Striker 27287 | -2/Protoforge | Spotted Striker 27290 | -2/Protoforge | Destroyed Striker 27292 | -2/Protoforge | Destroyed Striker 27302 | -2/Protoforge | Spotted Executioner 27302 | -2/Protoforge | Spotted Striker 27318 | -2/Protoforge | Destroyed Striker 27321 | -2/Protoforge | Destroyed Executioner 27351 | -2/Protoforge | Destroyed 13 combat bots 27374 | -2/Protoforge | Spotted Striker 27376 | -2/Protoforge | Spotted Striker 27386 | -2/Protoforge | Destroyed Striker 27386 | -2/Protoforge | Spotted Executioner 27388 | -2/Protoforge | Spotted Executioner 27406 | -2/Protoforge | Destroyed Striker 27408 | -2/Protoforge | Destroyed Executioner 27439 | -2/Protoforge | Destroyed Executioner 27467 | -2/Protoforge | Destroyed 13 combat bots 27470 | -2/Protoforge | Spotted Executioner 27473 | -2/Protoforge | Spotted Executioner 27474 | -2/Protoforge | Spotted Striker 27478 | -2/Protoforge | Spotted Striker 27503 | -2/Protoforge | Destroyed Striker 27505 | -2/Protoforge | Destroyed Striker 27509 | -2/Protoforge | Destroyed Executioner 27514 | -2/Protoforge | Destroyed Executioner 27546 | -2/Protoforge | Destroyed 13 combat bots 27608 | -2/Protoforge | Spotted Striker 27610 | -2/Protoforge | Spotted Striker 27613 | -2/Protoforge | Destroyed Striker 27613 | -2/Protoforge | Destroyed Striker 27647 | -2/Protoforge | Destroyed 7 combat bots 27699 | -2/Protoforge | Destroyed Executioner 27709 | -2/Protoforge | Destroyed Executioner 27733 | -2/Protoforge | Destroyed 7 combat bots 27763 | -2/Protoforge | UFD reported confirmed Drillbomb installation 27813 | -2/Protoforge | UFD reported confirmed Drillbomb installation 27904 | -2/Protoforge | Spotted Striker 27906 | -2/Protoforge | Destroyed Striker 27928 | -2/Protoforge | Destroyed Executioner 27982 | -2/Protoforge | Spotted Executioner 27983 | -2/Protoforge | Destroyed Executioner 28012 | -2/Protoforge | Build established: Hauler-Tank 28151 | -2/Protoforge | Destroyed Executioner 28158 | -2/Protoforge | Destroyed Executioner 28185 | -2/Protoforge | Lost 9 allies 28246 | -2/Protoforge | Spotted Striker 28246 | -2/Protoforge | Spotted Executioner 28250 | -2/Protoforge | Destroyed Striker 28264 | -2/Protoforge | Destroyed Executioner 28266 | -2/Protoforge | Destroyed Executioner 28278 | -2/Protoforge | Spotted Executioner 28286 | -2/Protoforge | Destroyed Executioner 28302 | -2/Protoforge | Spotted Striker 28304 | -2/Protoforge | Spotted Striker 28307 | -2/Protoforge | Destroyed 14 combat bots 28311 | -2/Protoforge | Lost 5 allies 28325 | -2/Protoforge | Destroyed Striker 28353 | -2/Protoforge | Lost 3 allies 28378 | -2/Protoforge | Spotted Striker 28379 | -2/Protoforge | Destroyed Striker 28379 | -2/Protoforge | Destroyed Striker 28448 | -2/Protoforge | Spotted Striker 28452 | -2/Protoforge | Destroyed Striker 28454 | -2/Protoforge | Spotted Striker 28459 | -2/Protoforge | Destroyed Striker 28519 | -2/Protoforge | Destroyed Executioner 28524 | -2/Protoforge | Destroyed Striker 28533 | -2/Protoforge | Reached level 36 28554 | -2/Protoforge | Destroyed 9 combat bots 28608 | -2/Protoforge | Spotted Striker 28608 | -2/Protoforge | Spotted Executioner 28613 | -2/Protoforge | Spotted Striker 28619 | -2/Protoforge | Destroyed Striker 28623 | -2/Protoforge | Spotted Striker 28624 | -2/Protoforge | Destroyed Striker 28626 | -2/Protoforge | Destroyed Striker 28631 | -2/Protoforge | Destroyed Executioner 28661 | -2/Protoforge | Destroyed 9 combat bots 28691 | -2/Protoforge | Spotted Executioner 28699 | -2/Protoforge | Destroyed Executioner 28699 | -2/Protoforge | Spotted Executioner 28706 | -2/Protoforge | Destroyed Executioner 28710 | -2/Protoforge | Destroyed Striker 28745 | -2/Protoforge | Destroyed 8 combat bots 28774 | -2/Protoforge | Spotted Striker 28776 | -2/Protoforge | Spotted Executioner 28776 | -2/Protoforge | Spotted Striker 28779 | -2/Protoforge | Destroyed Striker 28783 | -2/Protoforge | Destroyed Executioner 28792 | -2/Protoforge | Destroyed Striker 28795 | -2/Protoforge | Spotted Striker 28795 | -2/Protoforge | Spotted Executioner 28804 | -2/Protoforge | Destroyed Striker 28808 | -2/Protoforge | Destroyed Executioner 28838 | -2/Protoforge | Destroyed 19 combat bots 28876 | -2/Protoforge | Spotted Executioner 28876 | -2/Protoforge | Destroyed Executioner 28879 | -2/Protoforge | Spotted Striker 28881 | -2/Protoforge | Spotted Striker 28883 | -2/Protoforge | Destroyed Striker 28887 | -2/Protoforge | Destroyed Striker 28895 | -2/Protoforge | Spotted Striker 28896 | -2/Protoforge | Spotted Striker 28900 | -2/Protoforge | Spotted Striker 28901 | -2/Protoforge | Spotted Striker 28904 | -2/Protoforge | Destroyed Striker 28906 | -2/Protoforge | Destroyed Striker 28942 | -2/Protoforge | Destroyed 15 combat bots 28971 | -2/Protoforge | Spotted Striker 28972 | -2/Protoforge | Destroyed Striker 28976 | -2/Protoforge | Spotted Striker 28992 | -2/Protoforge | UFD reported confirmed Drillbomb installation 28994 | -2/Protoforge | Destroyed Striker 29051 | -2/Protoforge | Spotted Striker 29053 | -2/Protoforge | Destroyed Striker 29111 | -2/Protoforge | Spotted Striker 29111 | -2/Protoforge | Spotted Executioner 29120 | -2/Protoforge | Destroyed Striker 29125 | -2/Protoforge | Destroyed Executioner 29155 | -2/Protoforge | Destroyed 8 combat bots 29222 | -2/Protoforge | Destroyed Striker 29270 | -2/Protoforge | Spotted Striker 29270 | -2/Protoforge | Spotted Executioner 29270 | -2/Protoforge | Spotted Striker 29270 | -2/Protoforge | Spotted Striker 29279 | -2/Protoforge | Destroyed Striker 29290 | -2/Protoforge | Destroyed Striker 29296 | -2/Protoforge | Destroyed Striker 29305 | -2/Protoforge | Destroyed Executioner 29319 | -2/Protoforge | Spotted Striker 29330 | -2/Protoforge | Destroyed 14 combat bots 29368 | -2/Protoforge | Spotted Striker 29369 | -2/Protoforge | Spotted Striker 29369 | -2/Protoforge | Spotted Executioner 29371 | -2/Protoforge | Spotted Executioner 29383 | -2/Protoforge | Destroyed Striker 29388 | -2/Protoforge | Destroyed Striker 29392 | -2/Protoforge | Destroyed Executioner 29401 | -2/Protoforge | Destroyed Executioner 29436 | -2/Protoforge | Destroyed 14 combat bots 29473 | -2/Protoforge | Destroyed Executioner 29478 | -2/Protoforge | Spotted Striker 29481 | -2/Protoforge | Spotted Striker 29485 | -2/Protoforge | Spotted Striker 29485 | -2/Protoforge | Destroyed Striker 29488 | -2/Protoforge | Destroyed Striker 29490 | -2/Protoforge | Destroyed Striker 29513 | -2/Protoforge | Destroyed 12 combat bots 29568 | -2/Protoforge | Spotted Striker 29568 | -2/Protoforge | Spotted Striker 29568 | -2/Protoforge | Spotted Executioner 29568 | -2/Protoforge | Spotted Striker 29570 | -2/Protoforge | Destroyed Striker 29575 | -2/Protoforge | Destroyed Striker 29575 | -2/Protoforge | Destroyed Executioner 29592 | -2/Protoforge | Destroyed Striker 29618 | -2/Protoforge | Destroyed 12 combat bots 29669 | -2/Protoforge | Spotted Striker 29669 | -2/Protoforge | Spotted Executioner 29669 | -2/Protoforge | Spotted Striker 29669 | -2/Protoforge | Spotted Executioner 29669 | -2/Protoforge | Destroyed Striker 29681 | -2/Protoforge | Destroyed Striker 29681 | -2/Protoforge | UFD reported confirmed Drillbomb installation 29690 | -2/Protoforge | Destroyed Executioner 29694 | -2/Protoforge | Spotted Executioner 29694 | -2/Protoforge | Spotted Executioner 29696 | -2/Protoforge | Destroyed Executioner 29701 | -2/Protoforge | Destroyed Executioner 29701 | -2/Protoforge | Destroyed Executioner 29726 | -2/Protoforge | Lost 4 allies 29731 | -2/Protoforge | Destroyed 23 combat bots 29768 | -2/Protoforge | Spotted Striker 29768 | -2/Protoforge | Spotted Striker 29768 | -2/Protoforge | Spotted Striker 29772 | -2/Protoforge | Spotted Executioner 29781 | -2/Protoforge | Destroyed Executioner 29783 | -2/Protoforge | Destroyed Striker 29785 | -2/Protoforge | Destroyed Striker 29812 | -2/Protoforge | Destroyed Executioner 29819 | -2/Protoforge | Destroyed Executioner 29834 | -2/Protoforge | Lost 4 allies 29840 | -2/Protoforge | Destroyed 18 combat bots 29840 | -2/Protoforge | UFD reported confirmed Drillbomb installation 29868 | -2/Protoforge | Spotted Striker 29873 | -2/Protoforge | Spotted Striker 29878 | -2/Protoforge | Spotted Striker 29878 | -2/Protoforge | Spotted Striker 29883 | -2/Protoforge | Destroyed Striker 29887 | -2/Protoforge | Destroyed Striker 29887 | -2/Protoforge | Destroyed Striker 29890 | -2/Protoforge | Destroyed Striker 29903 | -2/Protoforge | Spotted Striker 29904 | -2/Protoforge | Destroyed Striker 29923 | -2/Protoforge | UFD reported confirmed Drillbomb installation 29938 | -2/Protoforge | Spotted Executioner 29961 | -2/Protoforge | Destroyed 19 combat bots 29968 | -2/Protoforge | Spotted Striker 29968 | -2/Protoforge | Spotted Striker 29968 | -2/Protoforge | Spotted Executioner 29968 | -2/Protoforge | Spotted Executioner 30035 | -2/Protoforge | Lost 5 allies 30148 | -2/Protoforge | Destroyed Executioner 30148 | -2/Protoforge | Destroyed Executioner 30149 | -2/Protoforge | Lost 4 allies 30168 | -2/Protoforge | Spotted Executioner 30168 | -2/Protoforge | Spotted Executioner 30168 | -2/Protoforge | Spotted Executioner 30168 | -2/Protoforge | Spotted Executioner 30172 | -2/Protoforge | Destroyed Executioner 30183 | -2/Protoforge | Destroyed Executioner 30188 | -2/Protoforge | Destroyed Executioner 30204 | -2/Protoforge | Spotted Striker 30208 | -2/Protoforge | Destroyed Striker 30217 | -2/Protoforge | Destroyed Executioner 30238 | -2/Protoforge | Destroyed 17 combat bots 30269 | -2/Protoforge | Spotted Executioner 30269 | -2/Protoforge | Spotted Striker 30269 | -2/Protoforge | Spotted Executioner 30269 | -2/Protoforge | Spotted Striker 30282 | -2/Protoforge | Destroyed Striker 30285 | -2/Protoforge | Destroyed Striker 30289 | -2/Protoforge | Destroyed Executioner 30293 | -2/Protoforge | Spotted Striker 30293 | -2/Protoforge | Spotted Executioner 30298 | -2/Protoforge | Destroyed Executioner 30316 | -2/Protoforge | Destroyed Executioner 30339 | -2/Protoforge | Destroyed 19 combat bots 30429 | -2/Protoforge | Spotted Striker 30431 | -2/Protoforge | Spotted Striker 30438 | -2/Protoforge | Destroyed Striker 30447 | -2/Protoforge | Destroyed Striker 30703 | -2/Protoforge | Destroyed V233-p 30777 | -2/Protoforge | Spotted V015-x 30783 | -2/Protoforge | Destroyed V375-h 30789 | -2/Protoforge | Destroyed V123-p 30796 | -2/Protoforge | Destroyed V015-x 30876 | -2/Protoforge | Found Faulty Cep. Rapid Grenade Launcher 30882 | -2/Protoforge | Found Faulty Cep. Rapid Grenade Launcher 30930 | -2/Protoforge | Found Prototype Device 30972 | -2/Protoforge | Identified Cep. Thermoelectric Network 31140 | -2/Protoforge | Destroyed Striker 31176 | -2/Protoforge | Destroyed Immortal 31176 | -2/Protoforge | Spotted Executioner 31179 | -2/Protoforge | Spotted Immortal 31193 | -2/Protoforge | Destroyed Immortal 31204 | -2/Protoforge | Destroyed Executioner 31225 | -2/Protoforge | Destroyed 8 combat bots 31263 | -2/Protoforge | Spotted Immortal 31275 | -2/Protoforge | Destroyed Decapitator 31283 | -2/Protoforge | Spotted Executioner 31283 | -2/Protoforge | Spotted Striker 31283 | -2/Protoforge | Destroyed Striker 31297 | -2/Protoforge | Destroyed Executioner 31324 | -2/Protoforge | Destroyed Striker 31345 | -2/Protoforge | Destroyed 10 combat bots 31361 | -2/Protoforge | Destroyed Executioner 31368 | -2/Protoforge | Spotted Executioner 31368 | -2/Protoforge | Spotted Executioner 31368 | -2/Protoforge | Spotted Striker 31368 | -2/Protoforge | Spotted Striker 31373 | -2/Protoforge | Destroyed Executioner 31375 | -2/Protoforge | Destroyed Striker 31378 | -2/Protoforge | Destroyed Striker 31382 | -2/Protoforge | Destroyed Executioner 31408 | -2/Protoforge | Destroyed 14 combat bots 31474 | -2/Protoforge | Spotted Striker 31474 | -2/Protoforge | Spotted Striker 31474 | -2/Protoforge | Spotted Striker 31474 | -2/Protoforge | Spotted Striker 31475 | -2/Protoforge | Destroyed Striker 31491 | -2/Protoforge | Destroyed Striker 31493 | -2/Protoforge | Spotted Executioner 31493 | -2/Protoforge | Spotted Striker 31498 | -2/Protoforge | Destroyed Striker 31501 | -2/Protoforge | Destroyed Striker 31510 | -2/Protoforge | Destroyed Striker 31512 | -2/Protoforge | Destroyed Executioner 31546 | -2/Protoforge | Destroyed 19 combat bots 31587 | -2/Protoforge | Destroyed Executioner 31593 | -2/Protoforge | Spotted Executioner 31601 | -2/Protoforge | Destroyed Executioner 31622 | -2/Protoforge | Destroyed 7 combat bots 31671 | -2/Protoforge | Destroyed Striker 31671 | -2/Protoforge | Destroyed Striker 31689 | -2/Protoforge | Destroyed Executioner 31694 | -2/Protoforge | Destroyed Executioner 31698 | -2/Protoforge | Spotted Executioner 31698 | -2/Protoforge | Spotted Executioner 31701 | -2/Protoforge | Destroyed Executioner 31713 | -2/Protoforge | Reached level 37 31713 | -2/Protoforge | Destroyed Executioner 31738 | -2/Protoforge | Destroyed 17 combat bots 31768 | -2/Protoforge | Spotted Executioner 31768 | -2/Protoforge | Spotted Executioner 31768 | -2/Protoforge | Spotted Executioner 31768 | -2/Protoforge | Spotted Striker 31773 | -2/Protoforge | Destroyed Striker 31778 | -2/Protoforge | Destroyed Executioner 31793 | -2/Protoforge | Spotted Executioner 31793 | -2/Protoforge | Spotted Striker 31798 | -2/Protoforge | Destroyed Striker 31801 | -2/Protoforge | Destroyed Executioner 31803 | -2/Protoforge | Destroyed Executioner 31831 | -2/Protoforge | Destroyed 14 combat bots 31865 | -2/Protoforge | Destroyed Immortal 31870 | -2/Protoforge | Destroyed Striker 31870 | -2/Protoforge | Spotted Striker 31870 | -2/Protoforge | Spotted Striker 31870 | -2/Protoforge | Spotted Striker 31873 | -2/Protoforge | Destroyed Striker 31877 | -2/Protoforge | Destroyed Striker 31879 | -2/Protoforge | Destroyed Striker 31893 | -2/Protoforge | Spotted Striker 31893 | -2/Protoforge | Spotted Striker 31894 | -2/Protoforge | Destroyed Striker 31897 | -2/Protoforge | Destroyed Striker 31929 | -2/Protoforge | Destroyed 19 combat bots 31990 | -2/Protoforge | Destroyed Executioner 32003 | -2/Protoforge | Destroyed Executioner 32013 | -2/Protoforge | Lost 3 allies 32025 | -2/Protoforge | Attacked by UFD forces 32067 | -2/Protoforge | Destroyed 8 combat bots 32100 | -2/Protoforge | Destroyed Executioner 32102 | -2/Protoforge | Destroyed Executioner 32102 | -2/Protoforge | Destroyed Executioner 32102 | -2/Protoforge | Spotted Executioner 32107 | -2/Protoforge | Destroyed Executioner 32128 | -2/Protoforge | Destroyed Executioner 32167 | -2/Protoforge | Destroyed 16 combat bots 32168 | -2/Protoforge | Destroyed Striker 32179 | -2/Protoforge | Destroyed Striker 32184 | -2/Protoforge | Spotted Striker 32184 | -2/Protoforge | Spotted Striker 32200 | -2/Protoforge | Destroyed 8 combat bots 32268 | -2/Protoforge | Spotted Executioner 32268 | -2/Protoforge | Spotted Executioner 32268 | -2/Protoforge | Spotted Executioner 32268 | -2/Protoforge | Spotted Striker 32286 | -2/Protoforge | Destroyed Executioner 32288 | -2/Protoforge | Destroyed Executioner 32295 | -2/Protoforge | Destroyed Striker 32300 | -2/Protoforge | Destroyed Executioner 32313 | -2/Protoforge | Destroyed Striker 32321 | -2/Protoforge | Destroyed Striker 32347 | -2/Protoforge | Destroyed 24 combat bots 32391 | -2/Protoforge | Destroyed Striker 32406 | -2/Protoforge | Spotted Executioner 32406 | -2/Protoforge | Spotted Executioner 32406 | -2/Protoforge | Spotted Executioner 32406 | -2/Protoforge | Spotted Executioner 32409 | -2/Protoforge | Destroyed Executioner 32414 | -2/Protoforge | Destroyed Executioner 32436 | -2/Protoforge | Destroyed Executioner 32460 | -2/Protoforge | Destroyed Executioner 32462 | -2/Protoforge | Destroyed Executioner 32468 | -2/Protoforge | Spotted Executioner 32468 | -2/Protoforge | Spotted Executioner 32468 | -2/Protoforge | Spotted Striker 32468 | -2/Protoforge | Spotted Executioner 32468 | -2/Protoforge | Destroyed Executioner 32468 | -2/Protoforge | Destroyed Executioner 32481 | -2/Protoforge | Destroyed Striker 32483 | -2/Protoforge | Destroyed Executioner 32495 | -2/Protoforge | Destroyed Executioner 32502 | -2/Protoforge | Destroyed Executioner 32519 | -2/Protoforge | Found Exp. Core Analyzer 32523 | -2/Protoforge | Destroyed 38 combat bots 32528 | -2/Protoforge | Found Exp. Core Analyzer 32778 | -2/Protoforge | Spotted Executioner 32778 | -2/Protoforge | Spotted Striker 32791 | -2/Protoforge | Destroyed Striker 32797 | -2/Protoforge | Destroyed Executioner 32823 | -2/Protoforge | Destroyed 7 combat bots 32850 | -2/Protoforge | Spotted Executioner 32857 | -2/Protoforge | Spotted Executioner 32858 | -2/Protoforge | Spotted Executioner 32858 | -2/Protoforge | Spotted Executioner 32915 | -2/Protoforge | Destroyed Executioner 32921 | -2/Protoforge | Destroyed Executioner 33006 | -2/Protoforge | Identified exit to Garrison 33008 | -2/Protoforge | Entered Garrison 33045 | -2/Garrison | Learned Access security intel 33056 | -2/Garrison | Triggered checkpoint 33110 | -2/Garrison | Triggered checkpoint 33200 | -2/Garrison | Triggered checkpoint 33219 | -2/Garrison | Discovered exit to Access (range 0) 33238 | -2/Garrison | Destroyed 9 combat bots 33274 | -2/Garrison | Triggered checkpoint 33368 | -2/Garrison | Spotted B-90 Cyclops 33370 | -2/Garrison | Destroyed B-90 Cyclops 33378 | -2/Garrison | Triggered checkpoint 33422 | -2/Garrison | Triggered checkpoint 33450 | -2/Garrison | Destroyed 11 combat bots 33464 | -2/Garrison | Triggered checkpoint 33529 | -2/Garrison | Discovered exit to Access (range 10) 33684 | -2/Garrison | Triggered checkpoint 33744 | -2/Garrison | Discovered exit to Access (range 32) 33744 | -2/Garrison | Discovered exit to Access (range 44) 33744 | -2/Garrison | Discovered exit to Access (range 56) 33841 | -2/Garrison | Destroyed 10 combat bots 34130 | -2/Garrison | Spotted Striker 34153 | -2/Garrison | Destroyed Striker 34311 | -2/Garrison | Rewired Executioner 34327 | -2/Garrison | Rewired Striker 34345 | -2/Garrison | Entered Access 34345 | -1/Access | Accompanied by 3 allies 34481 | -1/Access | Destroyed B-99 Colossus 34579 | -1/Access | Spotted B-99 Colossus 34583 | -1/Access | Destroyed B-99 Colossus 34595 | -1/Access | First assault squad dispatched 34617 | -1/Access | Spotted Striker 34617 | -1/Access | Spotted Striker 34619 | -1/Access | Destroyed Striker 34630 | -1/Access | Destroyed Striker 34651 | -1/Access | Destroyed 8 combat bots 34736 | -1/Access | Spotted Executioner 34738 | -1/Access | Spotted Executioner 34738 | -1/Access | Destroyed Executioner 34742 | -1/Access | Destroyed Executioner 34876 | -1/Access | Destroyed 7 combat bots 34915 | -1/Access | Reached level 38 34938 | -1/Access | Destroyed 16 combat bots 34943 | -1/Access | Identified exit to Command 34960 | -1/Access | Spotted B-99 Colossus 34960 | -1/Access | Spotted B-99 Colossus 34966 | -1/Access | Destroyed B-99 Colossus 35040 | -1/Access | High security lockdown imminent 35120 | -1/Access | High security lockdown engaged 35125 | -1/Access | Crushed by falling debris 35235 | -1/Access | Spotted B-99 Colossus 35241 | -1/Access | Destroyed B-99 Colossus 35247 | -1/Access | Spotted B-99 Colossus 35262 | -1/Access | Destroyed 28 combat bots 35265 | -1/Access | Destroyed B-99 Colossus 35300 | -1/Access | Entered Command 35505 | -1/Command | Build established: Hauler-Gunner 35550 | -1/Command | First assault squad dispatched 35569 | -1/Command | Disengaged cave seal 35613 | -1/Command | Phase Generator disabled 35651 | -1/Command | Destroyed Executioner 35651 | -1/Command | Destroyed Executioner 35933 | -1/Command | High security lockdown imminent 36013 | -1/Command | High security lockdown engaged 36023 | -1/Command | Destroyed 7 combat bots 36150 | -1/Command | Destroyed Striker 36191 | -1/Command | Destroyed 20 combat bots 36232 | -1/Command | Destroyed Striker 36234 | -1/Command | Destroyed Striker 36287 | -1/Command | Destroyed 22 combat bots 36404 | -1/Command | Spotted Executioner 36417 | -1/Command | Destroyed Executioner 36433 | -1/Command | Reached level 39 36463 | -1/Command | Destroyed 27 combat bots 36473 | -1/Command | Destroyed Executioner 36482 | -1/Command | Destroyed Executioner 36607 | -1/Command | Destroyed Striker 36610 | -1/Command | Destroyed Executioner 36628 | -1/Command | Spotted Striker 36628 | -1/Command | Spotted Striker 36629 | -1/Command | Spotted Striker 36630 | -1/Command | Destroyed Striker 36635 | -1/Command | Spotted Executioner 36651 | -1/Command | Destroyed 9 combat bots 36651 | -1/Command | Destroyed Striker 36653 | -1/Command | Destroyed Striker 36655 | -1/Command | Destroyed Striker 36670 | -1/Command | Spotted Striker 36670 | -1/Command | Spotted Striker 36672 | -1/Command | Destroyed Striker 36674 | -1/Command | Destroyed Striker 36680 | -1/Command | Destroyed Striker 36702 | -1/Command | Destroyed Executioner 36730 | -1/Command | Destroyed 20 combat bots 37275 | -1/Command | Spotted B-99 Colossus 37279 | -1/Command | Destroyed B-99 Colossus 37315 | -1/Command | Spotted B-99 Colossus 37329 | -1/Command | Destroyed B-99 Colossus 37420 | -1/Command | Spotted Striker 37422 | -1/Command | Spotted Executioner 37443 | -1/Command | Destroyed Striker 37448 | -1/Command | Destroyed Executioner 37478 | -1/Command | Destroyed 9 combat bots 37486 | -1/Command | Spotted Striker 37491 | -1/Command | Destroyed Striker 37497 | -1/Command | Destroyed Striker 37520 | -1/Command | Destroyed 8 combat bots 37521 | -1/Command | Destroyed Executioner 37562 | -1/Command | Destroyed 10 combat bots 37670 | -1/Command | Spotted Striker 37672 | -1/Command | Destroyed Striker 37880 | -1/Command | Destroyed 56 combat bots 38041 | -1/Command | Destroyed 82 combat bots 38149 | -1/Command | Destroyed 14 combat bots 38255 | -1/Command | Destroyed 12 combat bots 38618 | -1/Command | Spotted Combat Programmer 38618 | -1/Command | Spotted Combat Programmer 38623 | -1/Command | Destroyed Combat Programmer 38626 | -1/Command | Spotted M Guard 38630 | -1/Command | Destroyed Combat Programmer 38632 | -1/Command | Destroyed M Guard 38645 | -1/Command | Destroyed M Guard 38645 | -1/Command | All MAIN.C guards destroyed 39130 | -1/Command | Destroyed Executioner 39134 | -1/Command | Spotted Striker 39138 | -1/Command | Spotted Alpha 7 39139 | -1/Command | Spotted Alpha 7 39140 | -1/Command | Spotted Executioner 39141 | -1/Command | Spotted Striker 39144 | -1/Command | Destroyed Alpha 7 39148 | -1/Command | Destroyed Striker 39148 | -1/Command | Destroyed Striker 39150 | -1/Command | Destroyed Executioner 39152 | -1/Command | Destroyed Alpha 7 39168 | -1/Command | Spotted Striker 39169 | -1/Command | Destroyed Striker 39190 | -1/Command | Destroyed 11 combat bots 39327 | -1/Command | Spotted Executioner 39331 | -1/Command | Spotted Executioner 39339 | -1/Command | Destroyed Executioner 39341 | -1/Command | Spotted B-99 Colossus 39341 | -1/Command | Spotted B-99 Colossus 39362 | -1/Command | Destroyed B-99 Colossus 39364 | -1/Command | Destroyed B-99 Colossus 39367 | -1/Command | Destroyed Executioner 39579 | -1/Command | Reached level 40 39679 | -1/Command | Destroyed 69 combat bots 39849 | -1/Command | Destroyed 68 combat bots 39939 | -1/Command | Upgraded with Utility slot (x1) 39991 | -1/Command | Destroyed 9 combat bots 40058 | -1/Command | Destroyed 13 combat bots 40163 | -1/Command | Destroyed 7 combat bots 40245 | -1/Command | Build established: Hauler-Tank 40351 | -1/Command | Discovered new exit (range 8) 40894 | -1/Command | Identified Sigix Terminator 40896 | -1/Command | Identified System Mapper 41095 | -1/Command | Met MAIN.C 41095 | -1/Command | 0b10 Conduit disabled 41203 | -1/Command | Destroyed MAIN.C Shell 41205 | -1/Command | MAIN.C activated Command garrisons 41212 | -1/Command | Destroyed MAIN.C 41267 | -1/Command | Identified Core Reset Matrix 41267 | -1/Command | Discovered new exit (range 62) 41267 | -1/Command | Discovered new exit (range 62) 41267 | -1/Command | Extracted map data and part IDs from MAIN.C's data core 41572 | -1/Command | Found Exp. System Purifier 41583 | -1/Command | Found Exp. Armor Integrity Analyzer 41852 | -1/Command | Build established: Hauler-Gunner 43065 | -1/Command | Warped through subspace to slip node 43065 | -1/Command | Discovered new exit (range 5) 43071 | -1/Command | Identified exit to Access_0 43072 | -1/Command | Entered Access_0 43075 | -1/Access_0 | Met Architect 43084 | -1/Access_0 | Destroyed A8 43090 | -1/Access_0 | Architect warped through subspace 43163 | -1/Access_0 | Architect warped through subspace 43217 | -1/Access_0 | Architect warped through subspace 43274 | -1/Access_0 | Architect warped through subspace 43319 | -1/Access_0 | Architect warped through subspace 43379 | -1/Access_0 | Subspace Access Node disabled 43384 | -1/Access_0 | Architect warped through subspace 43416 | -1/Access_0 | Architect warped through subspace 43417 | -1/Access_0 | A6 warped into view 43424 | -1/Access_0 | Destroyed A6 43447 | -1/Access_0 | Architect warped through subspace 43454 | -1/Access_0 | Found Prototype Device 43456 | -1/Access_0 | Found Exp. Weapon Cycler 43460 | -1/Access_0 | Found Exp. Phase Shifter 43490 | -1/Access_0 | Architect warped through subspace 43522 | -1/Access_0 | Architect warped through subspace 43540 | -1/Access_0 | Architect warped through subspace 43562 | -1/Access_0 | Architect warped through subspace 43569 | -1/Access_0 | Subspace Access Node disabled 43589 | -1/Access_0 | Architect warped through subspace 43619 | -1/Access_0 | Architect warped through subspace 43659 | -1/Access_0 | Architect warped through subspace 43748 | -1/Access_0 | Destroyed A2 43755 | -1/Access_0 | Extracted Singularity Gate Test 138-C access codes from A2's data core 43782 | -1/Access_0 | A5 warped into view 43803 | -1/Access_0 | Destroyed A5 43811 | -1/Access_0 | Architect warped through subspace 43873 | -1/Access_0 | Architect warped through subspace 43940 | -1/Access_0 | Architect warped through subspace 43992 | -1/Access_0 | Singularity Gate disabled 43998 | -1/Access_0 | Singularity Gate disabled 44001 | -1/Access_0 | Architect warped through subspace 44076 | -1/Access_0 | Architect warped through subspace 44125 | -1/Access_0 | Architect warped through subspace 44168 | -1/Access_0 | Architect warped through subspace 44205 | -1/Access_0 | A4 warped into view 44226 | -1/Access_0 | Architect warped through subspace 44280 | -1/Access_0 | Destroyed A4 44281 | -1/Access_0 | Architect warped through subspace 44307 | -1/Access_0 | Architect warped through subspace 44332 | -1/Access_0 | Subspace Access Node disabled 44361 | -1/Access_0 | Architect warped through subspace 44386 | -1/Access_0 | Architect warped through subspace 44466 | -1/Access_0 | Core integrity fell below 50% 44502 | -1/Access_0 | Core integrity fell below 20% 44522 | -1/Access_0 | Architect warped through subspace 44551 | -1/Access_0 | Destroyed by Architect with Modified Sigix Sheargun Last Messages --------------- 44500_ Architect suffers critical hit (Smash). 44500_ Destroyed Prototype Hackware. 44501_ Penetrated by Quantum Shear. 44503_ Architect suffers critical hit (Smash). 44503_ Destroyed Alien Energy Gun. 44508_ Architect regenerates Zero-point Reactor. 44509_ Destroyed Prototype Hackware. 44510_ Penetrated by Quantum Shear. 44512_ Architect suffers critical hit (Smash). 44512_ Destroyed Imp. Armor Integrity Analyzer. 44518_ Architect regenerates Exp. Core Analyzer. 44518_ Destroyed Prototype Hackware. 44521_ Penetrated by Quantum Shear. 44521_ Architect suffers critical hit (Smash). 44521_ Destroyed Alien Energy Gun. Architect warps through subspace. 44526_ Acquired Exp. Kinecellerator. 44542_ Penetrated by Quantum Shear. 44547_ Quantum Shear penetrates Wall. 44547_ Penetrated by Quantum Shear. Map ----- +----------------------------------------------------+ | ?????????## #####??????? " " #???????????????? | | ?????????# ######?# " " #???????????????? | | ?????###### ## #???????????????? | | ?????# ## ##??????????????? | | ?????# #### ## ##?????????????? | | #?#### ### #??# ##????????????? | | ### # #?# #??## ##???????????? | | """""" ## ###???#" #???????????? | | ### ##???###" #### #?????? | | #""""""#?### #????# ###?????? #?????? | | "" ""##??## ####??## "##???????????? ? ?????? | | #"# # ######## #??## ##?????????????????????? | | # "" ## #### #??????????????????????? | | "## # ## #??????????????????????? | | #? # ### #??????????????????????? | | ?# ## #?# ##?????????????????????? | | ? "?##"# ### #?????????????????????? | | #"#??#"## ## ##?????????????????????? | | ##??? "###" ####??????????????????????? | | ???? "#?##" "##?????????????????????????? | | ??? "#??## #"#??????????????????????????? | | ?? ##"????## # #??????? #?????????????????? | | ? ??#"#???## ""#?###?? #?????????????????? | | ? ???#" #??#; ### ## #?????????????????? | | ????#" ###; ;; #;;;; #####?????????????? | | ????#"# #"# ;; ;;@ #?????????? | | ?????#"# "# #;; 0 #??????????? | | ?????# ;; #### ##??????????? | | ?????#" "# ;## ###????????????????? | | ####### #"# #? #??????????????????? | | ##" # ? ##??????????????????? | | ## ## ##???????????????????? | | ###### ## # #????????????????????? | | #????# ### #????????????????????? | | #????# #?## ######????????????????????? | | ##????# ####??###?????????????????????????? | | ??????## "" "" #???????????????????????????????? | | ???????####" # ##???????????????????????????????? | | ??????????#" ""#????????????????????????????????? | | ####??????#" ""#????????????????????????????????? | | #""#######" ###???????????????????????????????? | | "" #####???????????????????????????? | | "" " #???????????????????????????? | | ####"#""""" "#######???????????????????????????? | | ???##### """ ##?????????????????????????????????? | | ?????# #""" #??????????????????????????????????? | | ????? "#""""###??????????????????????????????????? | | ???? "" "#????????????????????????????????????? | | ??# "# ##???????????????????????????????????? | | ? ## #??????????????????????#?"??????????? | +----------------------------------------------------+ Best States ------------- Heat Dissipation 123 Coolant Potential 65 Energy Generation 93 Energy Capacity 820 Matter Stores 300 Matter Capacity 600 Sight Range 19 Robot Scan Range 30 Terrain Scan Range 14 Terrain Scan Density 10 Jamming Range 16 Cloak Strength 4 Additional Mass Support 30 Corruption Containment 8 Armor Coverage 800 Resistance: KI 70 Resistance: TH 70 Resistance: EX 20 Resistance: EM 95 Resistance: I 40 Resistance: S 20 Resistance: P 20 Point Defense Rating 480 Weapon Cycling 30 Phase Shifting 20 Evasion (%) 104 Targeting Accuracy 30 Target Analysis 10 Core Analysis 12 Armor Integrity Analysis 50 Recoil Reduction 5 Energy Filtering 50 Particle Charging 30 Kinecelleration 66 Salvage Targeting 10 Offensive Hacking 80 Defensive Hacking 48 Authchip Count 5 Item Schematics ----------------- Assault Drone Bay | -5/Zhirov | Free Exp. Heat Sink | -5/Zhirov | Free Exp. Optical Array | -5/Zhirov | Free Imp. Arc Thrower | -5/Zhirov | Free CPS Tube | -4/Factory | Scanalyzed Centrium Leg | -2/Quarantine | Hacked Adv. Matter Compressor | -2/Quarantine | Archive Adv. KE Penetrator | -2/Quarantine | Archive Mni. Fusion Reactor | -2/Quarantine | Archive Exp. Transmission Jammer | -2/Quarantine | Archive Imp. Matter Neutralizer | -2/Quarantine | Archive Exp. Core Analyzer | -2/Quarantine | Archive Exp. Focal Shield | -2/Quarantine | Archive Imp. Lightning Gun | -2/Quarantine | Archive Com. Mass Driver | -2/Protoforge | Archive Imp. Quantum Reactor | -2/Protoforge | Archive Neutron Missile Launcher | -2/Protoforge | Archive Adv. Myomer Leg | -2/Protoforge | Archive Diametric Drive | -2/Protoforge | Archive Imp. Matter Compressor | -2/Protoforge | Archive Exp. Thermal Shield | -2/Protoforge | Archive Hvy. Proton Missile Launcher | -2/Protoforge | Archive Thermal Barrier | -2/Protoforge | Archive Exp. Cooling System | -2/Protoforge | Archive Enh. Biometal Leg | -2/Protoforge | Archive Imp. Diametric Drive | -2/Protoforge | Archive Exp. EM Shield | -2/Protoforge | Archive Exp. Reaction Control System | -2/Protoforge | Archive Ragnarok Missile Launcher | -2/Protoforge | Archive Robot Schematics ------------------ S-43 Plague | -3/Testing | Archive Y-72 Warden | -2/Quarantine | Archive A-15 Conveyor | -2/Quarantine | Archive A-27 Freighter | -2/Quarantine | Archive H-77 Assassin | -2/Protoforge | Archive R-06 Scavenger | -2/Protoforge | Archive T-07 Excavator | -2/Protoforge | Archive K-01 Serf | -2/Protoforge | Archive L-61 Swordsman | -2/Protoforge | Archive X-87 Electro | -2/Protoforge | Archive E-15 Imp | -2/Protoforge | Archive Fabricated ------------ CPS Tube | x1 | -2/Protoforge Repaired ---------- Nothing Alien Tech Used ----------------- Integrated Dissipator Core Cannon Concept Nanofilaments [Tensile] High-powered Transdimensional Reconstructor Sigix Terminator Transdimensional Reconstructor Achievements -------------- None Challenges ------------ None RPGLIKE | -11 -10 -10 -7 -7 -5 -5 -5 -5 -4 -4 -4 -4 -4 -3 -3 -3 -2 -2 -2 -2 -1 -1 -1 --------- Run | Yrd Mat Sub Rec Scr Fac Upp Upp Zhi Pro Fac Upp Upp War Pro Res Tes Res Qua Frg Gar Acc Com Ac0 Levels Raised 39 | . 3 2 3 1 7 2 1 . 3 2 1 . 1 1 2 1 1 1 4 . 1 2 . XP Earned 63411 | 4000 5966 2006 4773 1093 10935 3204 1072 349 4693 3185 630 647 1330 1200 2956 1152 2104 835 6148 109 1606 3166 252 XP Spent 62370 | 3750 900 5225 1700 5750 7675 3600 . 1100 7000 3100 . . 1725 . . 2700 4700 1300 6180 . . 4100 1865 Upgrades 104 | 13 2 10 1 10 14 2 . 1 3 7 . . 6 . . 3 3 3 18 . . 1 7 Power Slot 2 | 1 . . . . . . . . . 1 . . . . . . . . . . . . . Propulsion Slot 4 | 1 . 1 . . . . . 1 . . . . . . . . . . 1 . . . . Utility Slot 13 | 1 1 2 1 1 2 1 . . 2 . . . . . . . 1 . . . . 1 . Weapon Slot 3 | 1 . . . 2 . . . . . . . . . . . . . . . . . . . Core Integrity 17 | . . 5 . . . . . . . . . . . . . . . . 12 . . . . Heat Dissipation 13 | 6 . . . 5 . . . . . . . . . . . . . . 1 . . . 1 Energy Generation 2 | . . . . . . . . . 1 . . . . . . . . . 1 . . . . Matter Storage 6 | . . . . . . . . . . . . . . . . . . . . . . . 6 Mass Support 3 | . 1 2 . . . . . . . . . . . . . . . . . . . . . Inventory Capacity 2 | 1 . . . . . . . . . . . . . . . . . 1 . . . . . Sight Range 3 | . . . . . . . . . . . . . . . . . 1 2 . . . . . Sensor Range 13 | . . . . . 7 . . . . . . . 6 . . . . . . . . . . Ranged Accuracy 5 | 2 . . . 1 . 1 . . . . . . . . . . 1 . . . . . . Hack Attack % 4 | . . . . . 3 . . . . . . . . . . 1 . . . . . . . Hack Defense % 4 | . . . . . 2 . . . . . . . . . . 2 . . . . . . . KI Resistance % 2 | . . . . . . . . . . 2 . . . . . . . . . . . . . TH Resistance % 4 | . . . . . . . . . . 4 . . . . . . . . . . . . . KI Damage % 4 | . . . . 1 . . . . . . . . . . . . . . 3 . . . . Protomatter Created 26341 | . 470 336 118 . 316 168 36 . 224 561 551 430 887 347 1761 569 599 295 9245 508 1281 7247 392 Integrity Restored 25013 | . 427 837 354 . 1259 352 20 . 925 824 1300 601 1833 177 2038 598 891 1660 6871 307 297 1294 2148 Core 17842 | . 344 837 354 . 839 205 11 . 612 692 786 457 1532 159 1166 363 891 691 4602 204 297 775 2025 Parts 7171 | . 83 . . . 420 147 9 . 313 132 514 144 301 18 872 235 . 969 2269 103 . 519 123 Protomatter Decayed 38141 | . 220 100 . 791 145 99 102 . 84 374 194 225 1003 . 966 201 530 193 28047 401 943 3511 12 Game ------ Seed NovaBlastCrosscalibrator Manual? 0 Play Time 09:12:25 Cumulative 366.5 hours Start 2025.05.07 @ 15:32:10 End 2025.08.20 @ 12:58:36 Sessions 29 Manual Loads 0 Difficulty Adventurer Special Mode Winter2019/RPGLIKE Game No. 137 Rogue 0 Adventurer 137 Explorer 0 Win Type - Total 14 Types 2/3/3/3/1/0/0/0/1/1 Lore% 89 Gallery% 81 Achievement% 81 Wizard Run 0 Options --------- Layout 2 ASCII 0 Keyboard 0 Movement Numpad Keybinds 0 Fullscreen 2 Font 24/Smallcaps Map View 50x44 Zoom Use 0% Tactical HUD 1 Map Filters NONE Filters NONE Steam 1 RUN: 9467204f-89bd-4a9a-8e21-c6def1b7315f